{"text_format":"1","workbook":"xlsx","n_sheets":4,"sheets":["Конфигуратор","Лист1","Наименование","Списки"],"not_rendered":{"charts":0,"images":2,"macros":1,"external_links":0,"defined_names":4,"comments":0,"pivot_tables":0},"unopened":[],"bounds":{"document_bytes":16777216,"sheet_cells":100000,"rows_first":2000,"rows_last":500,"rows_between":2000,"halvings":0,"cell_chars":16384,"cell_head_chars":4096},"cells_cut":0,"cells_raw":0,"read":"whole","date_system":"1900"}

{"sheet":"Конфигуратор","index":0,"n_rows":623,"n_cols":12,"rows_kept":623,"cut":false,"hidden":false,"merged":[[4,0,4,2],[5,0,9,2],[5,4,9,8],[4,4,4,8],[67,0,67,1],[40,0,40,1],[14,0,14,1],[15,0,15,1],[15,4,15,8],[16,4,16,8]]}
[]
[]
[]
[]
["Конфигуратор Светосигнальной арматуры Mitra",null,null,null,"Спецификация"]
["Данный конфигуратор предназначен для подбора компонентов, необходимых для комплектации законченного устройства свтосигнальной арматуры Mitra.\nИнструкция:\n1. Выберите тип устройсва, который вы хотите собрать.\n2. Выберите его характеристики.",null,null,null,"Результат:\nВ разделе Спецификация указаны комплектующие, необходимые для сборки кнопки, переключателя или сигнального индикатора.\n\nНеобходимо подбирать компоненты, только из предложенных вариантов. Старая светосигнальная арматура M22 несовместима с новой."]
[null,null,null,null,null,null,null,null,null,{"$f":"\"\"","v":""}]
[]
[]
[]
[]
[]
[]
[null,null,null,null,null,null,null,null,null,null,null,"Содержимое заголовка"]
["Выбор параметров",null,null,null,"№ позиции","Артикул","Наименование","Количество","Ссылка",null,null,{"$f":"LEFT(E15,12)","v":"№ позиции"}]
["Кнопка",null,null,null,"Спецификация 1",null,null,null,null,null,null,{"$f":"LEFT(E16,12)","v":"Спецификация"}]
[null,null,null,null,"Кнопка",null,null,null,null,null,null,"Кнопка"]
["1. Вид кнопки:","Плоская",{"$f":"IF(B18=\"\",\"Выберите вид кнопки\",\"\")","v":""},null,1,"M22P-FLLRP","Головка кнопки плоская прозрачная с фиксацией, красная",1,"https://www.dkc.ru/ru/catalog/2028/M22P-FLLRP/",null,null,"1"]
[null,null,null,null,2,"M22MF","Монтажное основание для крепления головок кнопок, переключателей и контактных блоков",1,"https://www.dkc.ru/ru/catalog/2028/M22MF/",null,null,"2"]
["2. С возможностью подсветки","Да",{"$f":"IF(B18=\"Грибовидная\",IF(B20=\"\",\"Грибовидная кнопка с подсветкой 'Да'\",IF(B20=\"Да\",\"\",\"Выберите возможность подсветки  'Да'\")),IF(B20=\"\",\"Выберите возможность подсветки\",IF(B18&B20&B24=\"ПлоскаяДаЧёрный\",\"Плоская черная кнопка без подсветки\",\"\")))","v":""},null,3,"MC-L220RPS","Контактный блок с клеммными зажимами под винт со светодиодом на  220В, красный",1,"https://www.dkc.ru/ru/catalog/2028/MC-L220RPS/",null,null,"3"]
[null,null,null,null,4,"MC-NOPS","Контактный блок с клеммными зажимами под винт, нормально-открытый",1,"https://www.dkc.ru/ru/catalog/2028/MC-NOPS/",null,null,"4"]
["3. Механизм:","С фиксацией",{"$f":"IF(B18=\"Грибовидная\",IF(B22=\"Без фиксации\",\"Выберите механизм кнопки 'С фиксацией'\",IF(B22=\"\",\"Грибовидная кнопка 'С фиксацией'\",\"\")),IF(B22=\"\",IF(B20=\"Нет\",\"Кнопка без подсветки только 'Без фиксации'\",\"Выберите механизм кнопки\"),IF(B20=\"Нет\",IF(B22<>\"Без фиксации\",\"Выберите механизм кнопки 'Без фиксации'\",\"\"),\"\")))","v":""},null,5,"MC-NCPS","Контактный блок с клеммными зажимами под винт, нормально-замкнутый",2,"https://www.dkc.ru/ru/catalog/2028/MC-NCPS/",null,null,"5"]
[null,null,null,null,"",null,null,null,null,null,null,""]
["4. Цвет","Красный",{"$f":"IF(B18=\"Грибовидная\",IF(B24=\"Красный\",\"\",IF(B24=\"\",\"Грибовидная кнопка 'Красная'\",\"Выберите цвет 'Красный'\")),IF(B24=\"\",\"Выберите цвет кнопки\",IF(B18&B20&B24=\"ПлоскаяДаЧёрный\",\"Плоская черная кнопка без подсветки\",\"\")))","v":""},null,null,null,null,null,null,null,null,""]
[null,null,null,null,null,null,null,null,null,null,null,""]
["5. Материал кольца","Пластик",{"$f":"IF(B26=\"\",\"Выберите материал кольца\",\"\")","v":""},null,null,null,null,null,null,null,null,""]
[null,null,null,null,null,null,null,null,null,null,null,""]
["6. Тип зажима контактного блока","Винтовой",{"$f":"IF(B28=\"\",\"Выберите тип зажима\",\"\")","v":""},null,null,null,null,null,null,null,null,""]
[null,null,null,null,null,null,null,null,null,null,null,""]
["7. Наличие NO контактов","Да",{"$f":"IF(B30=\"\",\"Выберите наличие NO контактов\",IF(B30=\"Нет\",IF(B34=\"Нет\",\"Необходимо выбрать блоки с 'NO или NC контактами'\",\"\"),\"\"))","v":""},null,null,null,null,null,null,null,null,""]
[null,null,null,null,null,null,null,null,null,null,null,""]
["8. Количество NO контактов",1,{"$f":"IFERROR(IF(B32&B30=\"Да\",\"Выберите количество NO контактов\",IF(B20&B28&B30&B34=\"НетВинтовойДаДа\",IF((IFERROR(B32,0)+IFERROR(B36,0))<=6,IF(B32=0,\"Выберите количество NO контактов\",\"\"),\"Без подсветки суммарно берем не более 6 блоков с 'NO и NC контактами'\"),IF(B20&B28&B30&B34=\"ДаВинтовойДаДа\",IF((IFERROR(B32,0)+IFERROR(B36,0))<=4,IF(B32=0,\"Выберите количество NO контактов\",\"\"),\"С подсветкой суммарно берем не более 4 блоков с 'NO и NC контактами'\"),IF(B20&B28&B30&B34=\"НетБезвинтовой Plug-InДаДа\",IF((IFERROR(B32,0)+IFERROR(B36,0))<=3,IF(B32=0,\"Выберите количество NO контактов\",\"\"),\"Без подсветки суммарно берем не более 3 блоков с 'NO и NC контактами'\"),IF(B20&B28&B30&B34=\"ДаБезвинтовой Plug-InДаДа\",IF((IFERROR(B32,0)+IFERROR(B36,0))<=2,IF(B32=0,\"Выберите количество NO контактов\",\"\"),\"С подсветкой суммарно берем не более 2 блоков  с 'NO и NC контактами'\"),IF(B20&B28&B30=\"НетВинтовойДа\",IF(B32<=6,IF(B32=0,\"Выберите количество NO контактов\",\"\"),\"Без подсветки берем не более 6 блоков с 'NO контактами'\"),IF(B20&B28&B30&B34=\"ДаВинтовойДаНет\",IF(B32<=4,IF(B32=0,\"Выберите количество NO контактов\",\"\"),\"С подсветкой берем не более 4 блоков с 'NO контактами'\"),IF(B20&B28&B30=\"НетБезвинтовой Plug-InДа\",IF(B32<=3,IF(B32=0,\"Выберите количество NO контактов\",\"\"),\"Без подсветки берем не более 3 блоков с 'NO контактами'\"),IF(B20&B28&B30=\"ДаБезвинтовой Plug-InДа\",IF(B32<=2,IF(B32=0,\"Выберите количество NO контактов\",\"\"),\"С подсветкой берем не более 2 блоков  с 'NO контактами'\"),IF(B30<>\"Да\",IF(B32>0,IF(B32=\"\",\"\",\"NO контакты не используем\"),\"\"),IF(B30=\"Да\",IF(B32=0,\"Выберите количество NO контактов\",\"\"),\"\"))))))))))),\"\")","v":""},null,null,null,null,null,null,null,null,""]
[null,null,null,null,null,null,null,null,null,null,null,""]
["9. Наличие NC контактов","Да",{"$f":"IF(B34=\"\",\"Выберите наличие NC контактов\",IF(B34=\"Нет\",IF(B30=\"Нет\",\"Необходимо выбрать блоки с 'NO или NC контактами'\",\"\"),\"\"))","v":""},null,null,null,null,null,null,null,null,""]
[null,null,null,null,null,null,null,null,null,null,null,""]
["10. Количество NC контактов",2,{"$f":"IFERROR(IF(B34&B36=\"Да\",\"Выберите количество NC контактов\",IF(B20&B28&B30&B34=\"НетВинтовойДаДа\",IF((B32+B36)<=6,IF(B36=0,\"Выберите количество NC контактов\",\"\"),\"Без подсветки суммарно берем не более 6 блоков с 'NO и NC контактами'\"),IF(B20&B28&B30&B34=\"ДаВинтовойДаДа\",IF((B32+B36)<=4,IF(B36=0,\"Выберите количество NC контактов\",\"\"),\"С подсветкой суммарно берем не более 4 блоков с 'NO и NC контактами'\"),IF(B20&B28&B30&B34=\"НетБезвинтовой Plug-InДаДа\",IF((B32+B36)<=3,IF(B36=0,\"Выберите количество NC контактов\",\"\"),\"Без подсветки суммарно берем не более 3 блоков с 'NO и NC контактами'\"),IF(B20&B28&B30&B34=\"ДаБезвинтовой Plug-InДаДа\",IF((B32+B36)<=2,IF(B36=0,\"Выберите количество NC контактов\",\"\"),\"С подсветкой суммарно берем не более 2 блоков  с 'NO и NC контактами'\"),IF(B20&B28&B34=\"НетВинтовойДа\",IF(B36<=6,IF(B36=0,\"Выберите количество NC контактов\",\"\"),\"Без подсветки берем не более 6 блоков с 'NC контактами'\"),IF(B20&B28&B34=\"ДаВинтовойДа\",IF(B36<=4,IF(B36=0,\"Выберите количество NC контактов\",\"\"),\"С подсветкой берем не более 4 блоков с 'NC контактами'\"),IF(B20&B28&B34=\"НетБезвинтовой Plug-InДа\",IF(B36<=3,IF(B36=0,\"Выберите количество NC контактов\",\"\"),\"Без подсветки берем не более 3 блоков с 'NC контактами'\"),IF(B20&B28&B34=\"ДаБезвинтовой Plug-InДа\",IF(B36<=2,IF(B36=0,\"Выберите количество NC контактов\",\"\"),\"С подсветкой берем не более 2 блоков  с 'NC контактами'\"),IF(B34<>\"Да\",IF(B36>0,IF(B36=\"\",\"\",\"NC контакты не используем\"),\"\"),IF(B34=\"Да\",IF(B36=0,\"Выберите количество NC контактов\",\"\"),\"\"))))))))))),\"\")","v":""},null,null,null,null,null,null,null,null,""]
[null,null,null,null,null,null,null,null,null,null,null,""]
["9. Напряжение сети","220 В",{"$f":"IF(B20=\"Нет\",IF(B38<>\"Нет\",\"Кнопка без подсветки Напряжение = 'Нет'\",\"\"),IF(B20=\"Да\",IF(B38=\"\", \"Кнопка с подсветкой выберите Напряжение\",IF(B38=\"Нет\", \"Кнопка с подсветкой выберите Напряжение\",\"\")), \"Выберите Напряжение\"))","v":""},null,null,null,null,null,null,null,null,""]
[null,null,null,null,null,null,null,null,null,null,null,""]
[null,null,null,null,null,null,null,null,null,null,null,""]
["Переключатель",null,null,null,null,null,null,null,null,null,null,""]
[null,null,null,null,null,null,null,null,null,null,null,""]
["1. Тип переключателя",null,{"$f":"IF(B43=\"\",\"Выберите тип переключателя\",\"\")","v":"Выберите тип переключателя"},null,null,null,null,null,null,null,null,""]
[null,null,null,null,null,null,null,null,null,null,null,""]
["2. Количество положений",null,{"$f":"IF(B45=\"\",\"Выберите количество положений переключателя\",\"\")","v":"Выберите количество положений переключателя"},null,null,null,null,null,null,null,null,""]
[null,null,null,null,null,null,null,null,null,null,null,""]
["3. Механизм",null,{"$f":"IF(B47=\"\",\"Выберите механизм переключателя\",\"\")","v":"Выберите механизм переключателя"},null,null,null,null,null,null,null,null,""]
[null,null,null,null,null,null,null,null,null,null,null,""]
["4. Материал",null,{"$f":"IF(B49=\"\",\"Выберите материал переключателя\",\"\")","v":"Выберите материал переключателя"},null,null,null,null,null,null,null,null,""]
[null,null,null,null,null,null,null,null,null,null,null,""]
["5. С возможностью подсветки",{"$f":"IF(Конфигуратор!$B$47<>\"\",\"Да\",\"\")","v":""},{"$f":"IF(B51=\"\",\"Выберите возможность подсветки\",\"\")","v":"Выберите возможность подсветки"},null,null,null,null,null,null,null,null,""]
[null,null,null,null,null,null,null,null,null,null,null,""]
["6. Напряжение сети",null,{"$f":"IF(B53=\"\",\"Переключатель с подсветкой выберите Напряжение\",\"\")","v":"Переключатель с подсветкой выберите Напряжение"},null,null,null,null,null,null,null,null,""]
[null,null,null,null,null,null,null,null,null,null,null,""]
["7. Цвет подсветки",null,{"$f":"IF(B55=\"\",\"Выберите цвет подсветки\",\"\")","v":"Выберите цвет подсветки"},null,null,null,null,null,null,null,null,""]
[null,null,null,null,null,null,null,null,null,null,null,""]
["8. Тип зажима контактного блока",null,{"$f":"IF(B57=\"\",\"Выберите тип зажима\",\"\")","v":"Выберите тип зажима"},null,null,null,null,null,null,null,null,""]
[null,null,null,null,null,null,null,null,null,null,null,""]
["9. Наличие NO контактов",null,{"$f":"IF(B59=\"\",\"Выберите наличие NO контактов\",IF(B59=\"Нет\",IF(B63=\"Нет\",\"Необходимо выбрать блоки с 'NO или NC контактами'\",\"\"),\"\"))","v":"Выберите наличие NO контактов"},null,null,null,null,null,null,null,null,""]
[null,null,null,null,null,null,null,null,null,null,null,""]
["10. Количество NO контактов",{"$f":"IF(Конфигуратор!$B$59=\"Нет\",0,$J$7)","v":""},{"$f":"IFERROR(IF(B59&B61=\"Да\",\"Выберите количество NO контактов\",IF(B51&B57&B59&B63=\"ДаВинтовойДаДа\",IF((B61+B65)<=4,IF(B61<1,\"Выберите количество NO контактов\",\"\"),\"С подсветкой суммарно берем не более 4 блоков с 'NO и NC контактами'\"),IF(B51&B57&B59&B63=\"ДаБезвинтовой Plug-InДаДа\",IF((B61+B65)<=2,IF(B59=\"Да\",IF(B61=0,\"Выберите количество NO контактов\",\"\"),\"\"),\"С подсветкой суммарно берем не более 2 блоков  с 'NO и NC контактами'\"),IF(B51&B57&B59=\"ДаВинтовойДа\",IF(B61<=4,IF(B61<1,\"Введите количество NO контактов\",\"\"),\"С подсветкой берем не более 4 блоков с 'NO контактами'\"),IF(B51&B57&B59=\"ДаБезвинтовой Plug-InДа\",IF(B61<=2,IF(B59=\"Да\",IF(B61=0,\"Выберите количество NO контактов\",\"\"),\"\"),\"С подсветкой берем не более 2 блоков  с 'NO контактами'\"),IF(B59<>\"Да\",IF(B61>0,IF(B61=\"\",\"\",\"NO контакты не используем\"),\"\"),IF(B59=\"Да\",IF(B61=0,\"Выберите количество NO контактов\",\"\"),\"\"))))))),\"\")","v":""},null,null,null,null,null,null,null,null,""]
[null,null,null,null,null,null,null,null,null,null,null,""]
["11. Наличие NC контактов",null,{"$f":"IF(B63=\"\",\"Выберите наличие NC контактов\",IF(B63=\"Нет\",IF(B59=\"Нет\",\"Необходимо выбрать блоки с 'NO или NC контактами'\",\"\"),\"\"))","v":"Выберите наличие NC контактов"},null,null,null,null,null,null,null,null,""]
[null,null,null,null,null,null,null,null,null,null,null,""]
["12. Количество NC контактов",{"$f":"IF(Конфигуратор!$B$63=\"Нет\",0,$J$7)","v":""},{"$f":"IFERROR(IF(B63&B65=\"Да\",\"Выберите количество NC контактов\",IF(B51&B57&B59&B63=\"ДаВинтовойДаДа\",IF((IFERROR(B61,0)+IFERROR(B65,0))<=4,IF(B65<1,\"Выберите количество NC контактов\",\"\"),\"С подсветкой суммарно берем не более 4 блоков с 'NO и NC контактами'\"),IF(B51&B57&B59&B63=\"ДаБезвинтовой Plug-InДаДа\",IF((IFERROR(B61,0)+IFERROR(B65,0))<=2,IF(B65<1,\"Выберите количество NC контактов\",\"\"),\"С подсветкой суммарно берем не более 2 блоков  с 'NO и NC контактами'\"),IF(B51&B57&B63=\"ДаВинтовойДа\",IF(B65<=4,IF(B65<1,\"Выберите количество NC контактов\",\"\"),\"С подсветкой берем не более 4 блоков с 'NC контактами'\"),IF(B51&B57&B63=\"НетБезвинтовой Plug-InДа\",IF(B65<=3,IF(B65<1,\"Выберите количество NC контактов\",\"\"),\"Без подсветки суммарно берем не более 3 блоков с 'NC контактами'\"),IF(B51&B57&B63=\"ДаБезвинтовой Plug-InДа\",IF(B65<=2,IF(B65<1,\"Выберите количество NC контактов\",\"\"),\"С подсветкой суммарно берем не более 2 блоков  с 'NC контактами'\"),IF(B63<>\"Да\",IF(B65>0,IF(B65=\"\",\"\",\"NC контакты не используем\"),\"\"),IF(B63=\"Да\",IF(B65<1,\"Выберите количество NC контактов\",\"\"),\"\")))))))),\"\")","v":""},null,null,null,null,null,null,null,null,""]
[null,null,null,null,null,null,null,null,null,null,null,""]
[null,null,null,null,null,null,null,null,null,null,null,""]
["Сигнальный инидкатор",null,null,null,null,null,null,null,null,null,null,""]
[null,null,null,null,null,null,null,null,null,null,null,""]
["1. Цвет лампы",null,{"$f":"IF(B70=\"\",\"Выберите цвет лампы\",\"\")","v":"Выберите цвет лампы"},null,null,null,null,null,null,null,null,""]
[null,null,null,null,null,null,null,null,null,null,null,""]
["2. Напряжение сети",null,{"$f":"IF(B72=\"\",\"Выберите напряжение\",\"\")","v":"Выберите напряжение"},null,null,null,null,null,null,null,null,""]
[null,null,null,null,null,null,null,null,null,null,null,""]
["3. Тип зажима",{"$f":"IF(Конфигуратор!$B$72<>\"\",\"Безвинтовой Plug-In\",\"\")","v":""},{"$f":"IF(B74=\"\",\"Выберите тип зажима\",\"\")","v":"Выберите тип зажима"},null,null,null,null,null,null,null,null,""]
[null,null,null,null,null,null,null,null,null,null,null,""]
["4. Материал",null,{"$f":"IF(B76=\"\",\"Выберите материал сигнального индикатора\",\"\")","v":"Выберите материал сигнального индикатора"},null,null,null,null,null,null,null,null,""]
[null,null,null,null,null,null,null,null,null,null,null,""]
[null,null,null,null,null,null,null,null,null,null,null,""]
[null,null,null,null,null,null,null,null,null,null,null,""]
[null,null,null,null,null,null,null,null,null,null,null,{"$f":"LEFT(E80,12)","v":""}]
[null,null,null,null,null,null,null,null,null,null,null,""]
[null,null,null,null,null,null,null,null,null,null,null,""]
[null,null,null,null,null,null,null,null,null,null,null,""]
[null,null,null,null,null,null,null,null,null,null,null,""]
[null,null,null,null,null,null,null,null,null,null,null,""]
[null,null,null,null,null,null,null,null,null,null,null,""]
[null,null,null,null,null,null,null,null,null,null,null,""]
[null,null,null,null,null,null,null,null,null,null,null,""]
[null,null,null,null,null,null,null,null,null,null,null,""]
[null,null,null,null,null,null,null,null,null,null,null,""]
[null,null,null,null,null,null,null,null,null,null,null,""]
[null,null,null,null,null,null,null,null,null,null,null,""]
[null,null,null,null,null,null,null,null,null,null,null,""]
[null,null,null,null,null,null,null,null,null,null,null,""]
[null,null,null,null,null,null,null,null,null,null,null,""]
[null,null,null,null,null,null,null,null,null,null,null,""]
[null,null,null,null,null,null,null,null,null,null,null,""]
[null,null,null,null,null,null,null,null,null,null,null,""]
[null,null,null,null,null,null,null,null,null,null,null,""]
[null,null,null,null,null,null,null,null,null,null,null,""]
[null,null,null,null,null,null,null,null,null,null,null,""]
[null,null,null,null,null,null,null,null,null,null,null,""]
[null,null,null,null,null,null,null,null,null,null,null,""]
[null,null,null,null,null,null,null,null,null,null,null,""]
[null,null,null,null,null,null,null,null,null,null,null,""]
[null,null,null,null,null,null,null,null,null,null,null,""]
[null,null,null,null,null,null,null,null,null,null,null,""]
[null,null,null,null,null,null,null,null,null,null,null,""]
[null,null,null,null,null,null,null,null,null,null,null,""]
[null,null,null,null,null,null,null,null,null,null,null,""]
[null,null,null,null,null,null,null,null,null,null,null,""]
[null,null,null,null,null,null,null,null,null,null,null,""]
[null,null,null,null,null,null,null,null,null,null,null,""]
[null,null,null,null,null,null,null,null,null,null,null,""]
[null,null,null,null,null,null,null,null,null,null,null,""]
[null,null,null,null,null,null,null,null,null,null,null,""]
[null,null,null,null,null,null,null,null,null,null,null,""]
[null,null,null,null,null,null,null,null,null,null,null,""]
[null,null,null,null,null,null,null,null,null,null,null,""]
[null,null,null,null,null,null,null,null,null,null,null,""]
[null,null,null,null,null,null,null,null,null,null,null,""]
[null,null,null,null,null,null,null,null,null,null,null,""]
[null,null,null,null,null,null,null,null,null,null,null,""]
[null,null,null,null,null,null,null,null,null,null,null,""]
[null,null,null,null,null,null,null,null,null,null,null,""]
[null,null,null,null,null,null,null,null,null,null,null,""]
[null,null,null,null,null,null,null,null,null,null,null,""]
[null,null,null,null,null,null,null,null,null,null,null,""]
[null,null,null,null,null,null,null,null,null,null,null,""]
[null,null,null,null,null,null,null,null,null,null,null,""]
[null,null,null,null,null,null,null,null,null,null,null,""]
[null,null,null,null,null,null,null,null,null,null,null,""]
[null,null,null,null,null,null,null,null,null,null,null,""]
[null,null,null,null,null,null,null,null,null,null,null,""]
[null,null,null,null,null,null,null,null,null,null,null,""]
[null,null,null,null,null,null,null,null,null,null,null,""]
[null,null,null,null,null,null,null,null,null,null,null,""]
[null,null,null,null,null,null,null,null,null,null,null,""]
[null,null,null,null,null,null,null,null,null,null,null,""]
[null,null,null,null,null,null,null,null,null,null,null,""]
[null,null,null,null,null,null,null,null,null,null,null,""]
[null,null,null,null,null,null,null,null,null,null,null,""]
[null,null,null,null,null,null,null,null,null,null,null,""]
[null,null,null,null,null,null,null,null,null,null,null,{"$f":"LEFT(E144,12)","v":""}]
[null,null,null,null,null,null,null,null,null,null,null,""]
[null,null,null,null,null,null,null,null,null,null,null,""]
[null,null,null,null,null,null,null,null,null,null,null,""]
[null,null,null,null,null,null,null,null,null,null,null,""]
[null,null,null,null,null,null,null,null,null,null,null,""]
[null,null,null,null,null,null,null,null,null,null,null,""]
[null,null,null,null,null,null,null,null,null,null,null,""]
[null,null,null,null,null,null,null,null,null,null,null,""]
[null,null,null,null,null,null,null,null,null,null,null,""]
[null,null,null,null,null,null,null,null,null,null,null,""]
[null,null,null,null,null,null,null,null,null,null,null,""]
[null,null,null,null,null,null,null,null,null,null,null,""]
[null,null,null,null,null,null,null,null,null,null,null,""]
[null,null,null,null,null,null,null,null,null,null,null,""]
[null,null,null,null,null,null,null,null,null,null,null,""]
[null,null,null,null,null,null,null,null,null,null,null,""]
[null,null,null,null,null,null,null,null,null,null,null,""]
[null,null,null,null,null,null,null,null,null,null,null,""]
[null,null,null,null,null,null,null,null,null,null,null,""]
[null,null,null,null,null,null,null,null,null,null,null,""]
[null,null,null,null,null,null,null,null,null,null,null,""]
[null,null,null,null,null,null,null,null,null,null,null,""]
[null,null,null,null,null,null,null,null,null,null,null,""]
[null,null,null,null,null,null,null,null,null,null,null,""]
[null,null,null,null,null,null,null,null,null,null,null,""]
[null,null,null,null,null,null,null,null,null,null,null,""]
[null,null,null,null,null,null,null,null,null,null,null,""]
[null,null,null,null,null,null,null,null,null,null,null,""]
[null,null,null,null,null,null,null,null,null,null,null,""]
[null,null,null,null,null,null,null,null,null,null,null,""]
[null,null,null,null,null,null,null,null,null,null,null,""]
[null,null,null,null,null,null,null,null,null,null,null,""]
[null,null,null,null,null,null,null,null,null,null,null,""]
[null,null,null,null,null,null,null,null,null,null,null,""]
[null,null,null,null,null,null,null,null,null,null,null,""]
[null,null,null,null,null,null,null,null,null,null,null,""]
[null,null,null,null,null,null,null,null,null,null,null,""]
[null,null,null,null,null,null,null,null,null,null,null,""]
[null,null,null,null,null,null,null,null,null,null,null,""]
[null,null,null,null,null,null,null,null,null,null,null,""]
[null,null,null,null,null,null,null,null,null,null,null,""]
[null,null,null,null,null,null,null,null,null,null,null,""]
[null,null,null,null,null,null,null,null,null,null,null,""]
[null,null,null,null,null,null,null,null,null,null,null,""]
[null,null,null,null,null,null,null,null,null,null,null,""]
[null,null,null,null,null,null,null,null,null,null,null,""]
[null,null,null,null,null,null,null,null,null,null,null,""]
[null,null,null,null,null,null,null,null,null,null,null,""]
[null,null,null,null,null,null,null,null,null,null,null,""]
[null,null,null,null,null,null,null,null,null,null,null,""]
[null,null,null,null,null,null,null,null,null,null,null,""]
[null,null,null,null,null,null,null,null,null,null,null,""]
[null,null,null,null,null,null,null,null,null,null,null,""]
[null,null,null,null,null,null,null,null,null,null,null,""]
[null,null,null,null,null,null,null,null,null,null,null,""]
[null,null,null,null,null,null,null,null,null,null,null,""]
[null,null,null,null,null,null,null,null,null,null,null,""]
[null,null,null,null,null,null,null,null,null,null,null,""]
[null,null,null,null,null,null,null,null,null,null,null,""]
[null,null,null,null,null,null,null,null,null,null,null,""]
[null,null,null,null,null,null,null,null,null,null,null,""]
[null,null,null,null,null,null,null,null,null,null,null,""]
[null,null,null,null,null,null,null,null,null,null,null,""]
[null,null,null,null,null,null,null,null,null,null,null,{"$f":"LEFT(E208,12)","v":""}]
[null,null,null,null,null,null,null,null,null,null,null,""]
[null,null,null,null,null,null,null,null,null,null,null,""]
[null,null,null,null,null,null,null,null,null,null,null,""]
[null,null,null,null,null,null,null,null,null,null,null,""]
[null,null,null,null,null,null,null,null,null,null,null,""]
[null,null,null,null,null,null,null,null,null,null,null,""]
[null,null,null,null,null,null,null,null,null,null,null,""]
[null,null,null,null,null,null,null,null,null,null,null,""]
[null,null,null,null,null,null,null,null,null,null,null,""]
[null,null,null,null,null,null,null,null,null,null,null,""]
[null,null,null,null,null,null,null,null,null,null,null,""]
[null,null,null,null,null,null,null,null,null,null,null,""]
[null,null,null,null,null,null,null,null,null,null,null,""]
[null,null,null,null,null,null,null,null,null,null,null,""]
[null,null,null,null,null,null,null,null,null,null,null,""]
[null,null,null,null,null,null,null,null,null,null,null,""]
[null,null,null,null,null,null,null,null,null,null,null,""]
[null,null,null,null,null,null,null,null,null,null,null,""]
[null,null,null,null,null,null,null,null,null,null,null,""]
[null,null,null,null,null,null,null,null,null,null,null,""]
[null,null,null,null,null,null,null,null,null,null,null,""]
[null,null,null,null,null,null,null,null,null,null,null,""]
[null,null,null,null,null,null,null,null,null,null,null,""]
[null,null,null,null,null,null,null,null,null,null,null,""]
[null,null,null,null,null,null,null,null,null,null,null,""]
[null,null,null,null,null,null,null,null,null,null,null,""]
[null,null,null,null,null,null,null,null,null,null,null,""]
[null,null,null,null,null,null,null,null,null,null,null,""]
[null,null,null,null,null,null,null,null,null,null,null,""]
[null,null,null,null,null,null,null,null,null,null,null,""]
[null,null,null,null,null,null,null,null,null,null,null,""]
[null,null,null,null,null,null,null,null,null,null,null,""]
[null,null,null,null,null,null,null,null,null,null,null,""]
[null,null,null,null,null,null,null,null,null,null,null,""]
[null,null,null,null,null,null,null,null,null,null,null,""]
[null,null,null,null,null,null,null,null,null,null,null,""]
[null,null,null,null,null,null,null,null,null,null,null,""]
[null,null,null,null,null,null,null,null,null,null,null,""]
[null,null,null,null,null,null,null,null,null,null,null,""]
[null,null,null,null,null,null,null,null,null,null,null,""]
[null,null,null,null,null,null,null,null,null,null,null,""]
[null,null,null,null,null,null,null,null,null,null,null,""]
[null,null,null,null,null,null,null,null,null,null,null,""]
[null,null,null,null,null,null,null,null,null,null,null,""]
[null,null,null,null,null,null,null,null,null,null,null,""]
[null,null,null,null,null,null,null,null,null,null,null,""]
[null,null,null,null,null,null,null,null,null,null,null,""]
[null,null,null,null,null,null,null,null,null,null,null,""]
[null,null,null,null,null,null,null,null,null,null,null,""]
[null,null,null,null,null,null,null,null,null,null,null,""]
[null,null,null,null,null,null,null,null,null,null,null,""]
[null,null,null,null,null,null,null,null,null,null,null,""]
[null,null,null,null,null,null,null,null,null,null,null,""]
[null,null,null,null,null,null,null,null,null,null,null,""]
[null,null,null,null,null,null,null,null,null,null,null,""]
[null,null,null,null,null,null,null,null,null,null,null,""]
[null,null,null,null,null,null,null,null,null,null,null,""]
[null,null,null,null,null,null,null,null,null,null,null,""]
[null,null,null,null,null,null,null,null,null,null,null,""]
[null,null,null,null,null,null,null,null,null,null,null,""]
[null,null,null,null,null,null,null,null,null,null,null,""]
[null,null,null,null,null,null,null,null,null,null,null,""]
[null,null,null,null,null,null,null,null,null,null,null,""]
[null,null,null,null,null,null,null,null,null,null,null,{"$f":"LEFT(E272,12)","v":""}]
[null,null,null,null,null,null,null,null,null,null,null,""]
[null,null,null,null,null,null,null,null,null,null,null,""]
[null,null,null,null,null,null,null,null,null,null,null,""]
[null,null,null,null,null,null,null,null,null,null,null,""]
[null,null,null,null,null,null,null,null,null,null,null,""]
[null,null,null,null,null,null,null,null,null,null,null,""]
[null,null,null,null,null,null,null,null,null,null,null,""]
[null,null,null,null,null,null,null,null,null,null,null,""]
[null,null,null,null,null,null,null,null,null,null,null,""]
[null,null,null,null,null,null,null,null,null,null,null,""]
[null,null,null,null,null,null,null,null,null,null,null,""]
[null,null,null,null,null,null,null,null,null,null,null,""]
[null,null,null,null,null,null,null,null,null,null,null,""]
[null,null,null,null,null,null,null,null,null,null,null,""]
[null,null,null,null,null,null,null,null,null,null,null,""]
[null,null,null,null,null,null,null,null,null,null,null,""]
[null,null,null,null,null,null,null,null,null,null,null,""]
[null,null,null,null,null,null,null,null,null,null,null,""]
[null,null,null,null,null,null,null,null,null,null,null,""]
[null,null,null,null,null,null,null,null,null,null,null,""]
[null,null,null,null,null,null,null,null,null,null,null,""]
[null,null,null,null,null,null,null,null,null,null,null,""]
[null,null,null,null,null,null,null,null,null,null,null,""]
[null,null,null,null,null,null,null,null,null,null,null,""]
[null,null,null,null,null,null,null,null,null,null,null,""]
[null,null,null,null,null,null,null,null,null,null,null,""]
[null,null,null,null,null,null,null,null,null,null,null,""]
[null,null,null,null,null,null,null,null,null,null,null,""]
[null,null,null,null,null,null,null,null,null,null,null,""]
[null,null,null,null,null,null,null,null,null,null,null,""]
[null,null,null,null,null,null,null,null,null,null,null,""]
[null,null,null,null,null,null,null,null,null,null,null,""]
[null,null,null,null,null,null,null,null,null,null,null,""]
[null,null,null,null,null,null,null,null,null,null,null,""]
[null,null,null,null,null,null,null,null,null,null,null,""]
[null,null,null,null,null,null,null,null,null,null,null,""]
[null,null,null,null,null,null,null,null,null,null,null,""]
[null,null,null,null,null,null,null,null,null,null,null,""]
[null,null,null,null,null,null,null,null,null,null,null,""]
[null,null,null,null,null,null,null,null,null,null,null,""]
[null,null,null,null,null,null,null,null,null,null,null,""]
[null,null,null,null,null,null,null,null,null,null,null,""]
[null,null,null,null,null,null,null,null,null,null,null,""]
[null,null,null,null,null,null,null,null,null,null,null,""]
[null,null,null,null,null,null,null,null,null,null,null,""]
[null,null,null,null,null,null,null,null,null,null,null,""]
[null,null,null,null,null,null,null,null,null,null,null,""]
[null,null,null,null,null,null,null,null,null,null,null,""]
[null,null,null,null,null,null,null,null,null,null,null,""]
[null,null,null,null,null,null,null,null,null,null,null,""]
[null,null,null,null,null,null,null,null,null,null,null,""]
[null,null,null,null,null,null,null,null,null,null,null,""]
[null,null,null,null,null,null,null,null,null,null,null,""]
[null,null,null,null,null,null,null,null,null,null,null,""]
[null,null,null,null,null,null,null,null,null,null,null,""]
[null,null,null,null,null,null,null,null,null,null,null,""]
[null,null,null,null,null,null,null,null,null,null,null,""]
[null,null,null,null,null,null,null,null,null,null,null,""]
[null,null,null,null,null,null,null,null,null,null,null,""]
[null,null,null,null,null,null,null,null,null,null,null,""]
[null,null,null,null,null,null,null,null,null,null,null,""]
[null,null,null,null,null,null,null,null,null,null,null,""]
[null,null,null,null,null,null,null,null,null,null,null,""]
[null,null,null,null,null,null,null,null,null,null,null,{"$f":"LEFT(E336,12)","v":""}]
[null,null,null,null,null,null,null,null,null,null,null,""]
[null,null,null,null,null,null,null,null,null,null,null,""]
[null,null,null,null,null,null,null,null,null,null,null,""]
[null,null,null,null,null,null,null,null,null,null,null,""]
[null,null,null,null,null,null,null,null,null,null,null,""]
[null,null,null,null,null,null,null,null,null,null,null,""]
[null,null,null,null,null,null,null,null,null,null,null,""]
[null,null,null,null,null,null,null,null,null,null,null,""]
[null,null,null,null,null,null,null,null,null,null,null,""]
[null,null,null,null,null,null,null,null,null,null,null,""]
[null,null,null,null,null,null,null,null,null,null,null,""]
[null,null,null,null,null,null,null,null,null,null,null,""]
[null,null,null,null,null,null,null,null,null,null,null,""]
[null,null,null,null,null,null,null,null,null,null,null,""]
[null,null,null,null,null,null,null,null,null,null,null,""]
[null,null,null,null,null,null,null,null,null,null,null,""]
[null,null,null,null,null,null,null,null,null,null,null,""]
[null,null,null,null,null,null,null,null,null,null,null,""]
[null,null,null,null,null,null,null,null,null,null,null,""]
[null,null,null,null,null,null,null,null,null,null,null,""]
[null,null,null,null,null,null,null,null,null,null,null,""]
[null,null,null,null,null,null,null,null,null,null,null,""]
[null,null,null,null,null,null,null,null,null,null,null,""]
[null,null,null,null,null,null,null,null,null,null,null,""]
[null,null,null,null,null,null,null,null,null,null,null,""]
[null,null,null,null,null,null,null,null,null,null,null,""]
[null,null,null,null,null,null,null,null,null,null,null,""]
[null,null,null,null,null,null,null,null,null,null,null,""]
[null,null,null,null,null,null,null,null,null,null,null,""]
[null,null,null,null,null,null,null,null,null,null,null,""]
[null,null,null,null,null,null,null,null,null,null,null,""]
[null,null,null,null,null,null,null,null,null,null,null,""]
[null,null,null,null,null,null,null,null,null,null,null,""]
[null,null,null,null,null,null,null,null,null,null,null,""]
[null,null,null,null,null,null,null,null,null,null,null,""]
[null,null,null,null,null,null,null,null,null,null,null,""]
[null,null,null,null,null,null,null,null,null,null,null,""]
[null,null,null,null,null,null,null,null,null,null,null,""]
[null,null,null,null,null,null,null,null,null,null,null,""]
[null,null,null,null,null,null,null,null,null,null,null,""]
[null,null,null,null,null,null,null,null,null,null,null,""]
[null,null,null,null,null,null,null,null,null,null,null,""]
[null,null,null,null,null,null,null,null,null,null,null,""]
[null,null,null,null,null,null,null,null,null,null,null,""]
[null,null,null,null,null,null,null,null,null,null,null,""]
[null,null,null,null,null,null,null,null,null,null,null,""]
[null,null,null,null,null,null,null,null,null,null,null,""]
[null,null,null,null,null,null,null,null,null,null,null,""]
[null,null,null,null,null,null,null,null,null,null,null,""]
[null,null,null,null,null,null,null,null,null,null,null,""]
[null,null,null,null,null,null,null,null,null,null,null,""]
[null,null,null,null,null,null,null,null,null,null,null,""]
[null,null,null,null,null,null,null,null,null,null,null,""]
[null,null,null,null,null,null,null,null,null,null,null,""]
[null,null,null,null,null,null,null,null,null,null,null,""]
[null,null,null,null,null,null,null,null,null,null,null,""]
[null,null,null,null,null,null,null,null,null,null,null,""]
[null,null,null,null,null,null,null,null,null,null,null,""]
[null,null,null,null,null,null,null,null,null,null,null,""]
[null,null,null,null,null,null,null,null,null,null,null,""]
[null,null,null,null,null,null,null,null,null,null,null,""]
[null,null,null,null,null,null,null,null,null,null,null,""]
[null,null,null,null,null,null,null,null,null,null,null,""]
[null,null,null,null,null,null,null,null,null,null,null,{"$f":"LEFT(E400,12)","v":""}]
[null,null,null,null,null,null,null,null,null,null,null,""]
[null,null,null,null,null,null,null,null,null,null,null,""]
[null,null,null,null,null,null,null,null,null,null,null,""]
[null,null,null,null,null,null,null,null,null,null,null,""]
[null,null,null,null,null,null,null,null,null,null,null,""]
[null,null,null,null,null,null,null,null,null,null,null,""]
[null,null,null,null,null,null,null,null,null,null,null,""]
[null,null,null,null,null,null,null,null,null,null,null,""]
[null,null,null,null,null,null,null,null,null,null,null,""]
[null,null,null,null,null,null,null,null,null,null,null,""]
[null,null,null,null,null,null,null,null,null,null,null,""]
[null,null,null,null,null,null,null,null,null,null,null,""]
[null,null,null,null,null,null,null,null,null,null,null,""]
[null,null,null,null,null,null,null,null,null,null,null,""]
[null,null,null,null,null,null,null,null,null,null,null,""]
[null,null,null,null,null,null,null,null,null,null,null,""]
[null,null,null,null,null,null,null,null,null,null,null,""]
[null,null,null,null,null,null,null,null,null,null,null,""]
[null,null,null,null,null,null,null,null,null,null,null,""]
[null,null,null,null,null,null,null,null,null,null,null,""]
[null,null,null,null,null,null,null,null,null,null,null,""]
[null,null,null,null,null,null,null,null,null,null,null,""]
[null,null,null,null,null,null,null,null,null,null,null,""]
[null,null,null,null,null,null,null,null,null,null,null,""]
[null,null,null,null,null,null,null,null,null,null,null,""]
[null,null,null,null,null,null,null,null,null,null,null,""]
[null,null,null,null,null,null,null,null,null,null,null,""]
[null,null,null,null,null,null,null,null,null,null,null,""]
[null,null,null,null,null,null,null,null,null,null,null,""]
[null,null,null,null,null,null,null,null,null,null,null,""]
[null,null,null,null,null,null,null,null,null,null,null,""]
[null,null,null,null,null,null,null,null,null,null,null,""]
[null,null,null,null,null,null,null,null,null,null,null,""]
[null,null,null,null,null,null,null,null,null,null,null,""]
[null,null,null,null,null,null,null,null,null,null,null,""]
[null,null,null,null,null,null,null,null,null,null,null,""]
[null,null,null,null,null,null,null,null,null,null,null,""]
[null,null,null,null,null,null,null,null,null,null,null,""]
[null,null,null,null,null,null,null,null,null,null,null,""]
[null,null,null,null,null,null,null,null,null,null,null,""]
[null,null,null,null,null,null,null,null,null,null,null,""]
[null,null,null,null,null,null,null,null,null,null,null,""]
[null,null,null,null,null,null,null,null,null,null,null,""]
[null,null,null,null,null,null,null,null,null,null,null,""]
[null,null,null,null,null,null,null,null,null,null,null,""]
[null,null,null,null,null,null,null,null,null,null,null,""]
[null,null,null,null,null,null,null,null,null,null,null,""]
[null,null,null,null,null,null,null,null,null,null,null,""]
[null,null,null,null,null,null,null,null,null,null,null,""]
[null,null,null,null,null,null,null,null,null,null,null,""]
[null,null,null,null,null,null,null,null,null,null,null,""]
[null,null,null,null,null,null,null,null,null,null,null,""]
[null,null,null,null,null,null,null,null,null,null,null,""]
[null,null,null,null,null,null,null,null,null,null,null,""]
[null,null,null,null,null,null,null,null,null,null,null,""]
[null,null,null,null,null,null,null,null,null,null,null,""]
[null,null,null,null,null,null,null,null,null,null,null,""]
[null,null,null,null,null,null,null,null,null,null,null,""]
[null,null,null,null,null,null,null,null,null,null,null,""]
[null,null,null,null,null,null,null,null,null,null,null,""]
[null,null,null,null,null,null,null,null,null,null,null,""]
[null,null,null,null,null,null,null,null,null,null,null,""]
[null,null,null,null,null,null,null,null,null,null,null,""]
[null,null,null,null,null,null,null,null,null,null,null,{"$f":"LEFT(E464,12)","v":""}]
[null,null,null,null,null,null,null,null,null,null,null,""]
[null,null,null,null,null,null,null,null,null,null,null,""]
[null,null,null,null,null,null,null,null,null,null,null,""]
[null,null,null,null,null,null,null,null,null,null,null,""]
[null,null,null,null,null,null,null,null,null,null,null,""]
[null,null,null,null,null,null,null,null,null,null,null,""]
[null,null,null,null,null,null,null,null,null,null,null,""]
[null,null,null,null,null,null,null,null,null,null,null,""]
[null,null,null,null,null,null,null,null,null,null,null,""]
[null,null,null,null,null,null,null,null,null,null,null,""]
[null,null,null,null,null,null,null,null,null,null,null,""]
[null,null,null,null,null,null,null,null,null,null,null,""]
[null,null,null,null,null,null,null,null,null,null,null,""]
[null,null,null,null,null,null,null,null,null,null,null,""]
[null,null,null,null,null,null,null,null,null,null,null,""]
[null,null,null,null,null,null,null,null,null,null,null,""]
[null,null,null,null,null,null,null,null,null,null,null,""]
[null,null,null,null,null,null,null,null,null,null,null,""]
[null,null,null,null,null,null,null,null,null,null,null,""]
[null,null,null,null,null,null,null,null,null,null,null,""]
[null,null,null,null,null,null,null,null,null,null,null,""]
[null,null,null,null,null,null,null,null,null,null,null,""]
[null,null,null,null,null,null,null,null,null,null,null,""]
[null,null,null,null,null,null,null,null,null,null,null,""]
[null,null,null,null,null,null,null,null,null,null,null,""]
[null,null,null,null,null,null,null,null,null,null,null,""]
[null,null,null,null,null,null,null,null,null,null,null,""]
[null,null,null,null,null,null,null,null,null,null,null,""]
[null,null,null,null,null,null,null,null,null,null,null,""]
[null,null,null,null,null,null,null,null,null,null,null,""]
[null,null,null,null,null,null,null,null,null,null,null,""]
[null,null,null,null,null,null,null,null,null,null,null,""]
[null,null,null,null,null,null,null,null,null,null,null,""]
[null,null,null,null,null,null,null,null,null,null,null,""]
[null,null,null,null,null,null,null,null,null,null,null,""]
[null,null,null,null,null,null,null,null,null,null,null,""]
[null,null,null,null,null,null,null,null,null,null,null,""]
[null,null,null,null,null,null,null,null,null,null,null,""]
[null,null,null,null,null,null,null,null,null,null,null,""]
[null,null,null,null,null,null,null,null,null,null,null,""]
[null,null,null,null,null,null,null,null,null,null,null,""]
[null,null,null,null,null,null,null,null,null,null,null,""]
[null,null,null,null,null,null,null,null,null,null,null,""]
[null,null,null,null,null,null,null,null,null,null,null,""]
[null,null,null,null,null,null,null,null,null,null,null,""]
[null,null,null,null,null,null,null,null,null,null,null,""]
[null,null,null,null,null,null,null,null,null,null,null,""]
[null,null,null,null,null,null,null,null,null,null,null,""]
[null,null,null,null,null,null,null,null,null,null,null,""]
[null,null,null,null,null,null,null,null,null,null,null,""]
[null,null,null,null,null,null,null,null,null,null,null,""]
[null,null,null,null,null,null,null,null,null,null,null,""]
[null,null,null,null,null,null,null,null,null,null,null,""]
[null,null,null,null,null,null,null,null,null,null,null,""]
[null,null,null,null,null,null,null,null,null,null,null,""]
[null,null,null,null,null,null,null,null,null,null,null,""]
[null,null,null,null,null,null,null,null,null,null,null,""]
[null,null,null,null,null,null,null,null,null,null,null,""]
[null,null,null,null,null,null,null,null,null,null,null,""]
[null,null,null,null,null,null,null,null,null,null,null,""]
[null,null,null,null,null,null,null,null,null,null,null,""]
[null,null,null,null,null,null,null,null,null,null,null,""]
[null,null,null,null,null,null,null,null,null,null,null,""]
[null,null,null,null,null,null,null,null,null,null,null,{"$f":"LEFT(E528,12)","v":""}]
[null,null,null,null,null,null,null,null,null,null,null,""]
[null,null,null,null,null,null,null,null,null,null,null,""]
[null,null,null,null,null,null,null,null,null,null,null,""]
[null,null,null,null,null,null,null,null,null,null,null,""]
[null,null,null,null,null,null,null,null,null,null,null,""]
[null,null,null,null,null,null,null,null,null,null,null,""]
[null,null,null,null,null,null,null,null,null,null,null,""]
[null,null,null,null,null,null,null,null,null,null,null,""]
[null,null,null,null,null,null,null,null,null,null,null,""]
[null,null,null,null,null,null,null,null,null,null,null,""]
[null,null,null,null,null,null,null,null,null,null,null,""]
[null,null,null,null,null,null,null,null,null,null,null,""]
[null,null,null,null,null,null,null,null,null,null,null,""]
[null,null,null,null,null,null,null,null,null,null,null,""]
[null,null,null,null,null,null,null,null,null,null,null,""]
[null,null,null,null,null,null,null,null,null,null,null,""]
[null,null,null,null,null,null,null,null,null,null,null,""]
[null,null,null,null,null,null,null,null,null,null,null,""]
[null,null,null,null,null,null,null,null,null,null,null,""]
[null,null,null,null,null,null,null,null,null,null,null,""]
[null,null,null,null,null,null,null,null,null,null,null,""]
[null,null,null,null,null,null,null,null,null,null,null,""]
[null,null,null,null,null,null,null,null,null,null,null,""]
[null,null,null,null,null,null,null,null,null,null,null,""]
[null,null,null,null,null,null,null,null,null,null,null,""]
[null,null,null,null,null,null,null,null,null,null,null,""]
[null,null,null,null,null,null,null,null,null,null,null,""]
[null,null,null,null,null,null,null,null,null,null,null,""]
[null,null,null,null,null,null,null,null,null,null,null,""]
[null,null,null,null,null,null,null,null,null,null,null,""]
[null,null,null,null,null,null,null,null,null,null,null,""]
[null,null,null,null,null,null,null,null,null,null,null,""]
[null,null,null,null,null,null,null,null,null,null,null,""]
[null,null,null,null,null,null,null,null,null,null,null,""]
[null,null,null,null,null,null,null,null,null,null,null,""]
[null,null,null,null,null,null,null,null,null,null,null,""]
[null,null,null,null,null,null,null,null,null,null,null,""]
[null,null,null,null,null,null,null,null,null,null,null,""]
[null,null,null,null,null,null,null,null,null,null,null,""]
[null,null,null,null,null,null,null,null,null,null,null,""]
[null,null,null,null,null,null,null,null,null,null,null,""]
[null,null,null,null,null,null,null,null,null,null,null,""]
[null,null,null,null,null,null,null,null,null,null,null,""]
[null,null,null,null,null,null,null,null,null,null,null,""]
[null,null,null,null,null,null,null,null,null,null,null,""]
[null,null,null,null,null,null,null,null,null,null,null,""]
[null,null,null,null,null,null,null,null,null,null,null,""]
[null,null,null,null,null,null,null,null,null,null,null,""]
[null,null,null,null,null,null,null,null,null,null,null,""]
[null,null,null,null,null,null,null,null,null,null,null,""]
[null,null,null,null,null,null,null,null,null,null,null,""]
[null,null,null,null,null,null,null,null,null,null,null,""]
[null,null,null,null,null,null,null,null,null,null,null,""]
[null,null,null,null,null,null,null,null,null,null,null,""]
[null,null,null,null,null,null,null,null,null,null,null,""]
[null,null,null,null,null,null,null,null,null,null,null,""]
[null,null,null,null,null,null,null,null,null,null,null,""]
[null,null,null,null,null,null,null,null,null,null,null,""]
[null,null,null,null,null,null,null,null,null,null,null,""]
[null,null,null,null,null,null,null,null,null,null,null,""]
[null,null,null,null,null,null,null,null,null,null,null,""]
[null,null,null,null,null,null,null,null,null,null,null,""]
[null,null,null,null,null,null,null,null,null,null,null,""]
[null,null,null,null,null,null,null,null,null,null,null,{"$f":"LEFT(E592,12)","v":""}]
[null,null,null,null,null,null,null,null,null,null,null,""]
[null,null,null,null,null,null,null,null,null,null,null,""]
[null,null,null,null,null,null,null,null,null,null,null,""]
[null,null,null,null,null,null,null,null,null,null,null,""]
[null,null,null,null,null,null,null,null,null,null,null,""]
[null,null,null,null,null,null,null,null,null,null,null,""]
[null,null,null,null,null,null,null,null,null,null,null,""]
[null,null,null,null,null,null,null,null,null,null,null,""]
[null,null,null,null,null,null,null,null,null,null,null,""]
[null,null,null,null,null,null,null,null,null,null,null,""]
[null,null,null,null,null,null,null,null,null,null,null,""]
[null,null,null,null,null,null,null,null,null,null,null,""]
[null,null,null,null,null,null,null,null,null,null,null,""]
[null,null,null,null,null,null,null,null,null,null,null,""]
[null,null,null,null,null,null,null,null,null,null,null,""]
[null,null,null,null,null,null,null,null,null,null,null,""]
[null,null,null,null,null,null,null,null,null,null,null,""]
[null,null,null,null,null,null,null,null,null,null,null,""]
[null,null,null,null,null,null,null,null,null,null,null,""]
[null,null,null,null,null,null,null,null,null,null,null,""]
[null,null,null,null,null,null,null,null,null,null,null,""]
[null,null,null,null,null,null,null,null,null,null,null,""]
[null,null,null,null,null,null,null,null,null,null,null,""]
[null,null,null,null,null,null,null,null,null,null,null,""]
[null,null,null,null,null,null,null,null,null,null,null,""]
[null,null,null,null,null,null,null,null,null,null,null,""]
[null,null,null,null,null,null,null,null,null,null,null,""]
[null,null,null,null,null,null,null,null,null,null,null,""]
[null,null,null,null,null,null,null,null,null,null,null,""]
[null,null,null,null,null,null,null,null,null,null,null,""]
[null,null,null,null,null,null,null,null,null,null,null,""]

{"sheet":"Лист1","index":1,"n_rows":42,"n_cols":10,"rows_kept":42,"cut":false,"hidden":true,"merged":[[6,6,6,8],[1,1,1,5],[2,1,2,5],[9,1,9,5],[16,1,16,5]]}
[{"$f":"COUNTIF(Конфигуратор!L:L,\"Спецификация\")","v":1},"№ позиции","Артикул","Наименование","Количество","Ссылка"]
["Индекс",{"$f":"IF(SUM(B4:B18)=0,0,\"Спецификация \"&A1+1)","v":"Спецификация 2"}]
[{"$f":"IF(OR(C4=\"\",C4=\"Ошибка параметров ввода\",C5=\"Ошибка параметров ввода\",C6=\"Ошибка параметров ввода\",C7=\"Ошибка параметров ввода\",C8=\"Ошибка параметров ввода\"),0,1)","v":1},{"$f":"IF(SUM(A3:A7)=0,,\"Кнопка\")","v":"Кнопка"}]
[{"$f":"IF(OR(C5=\"\",C4=\"Ошибка параметров ввода\",C5=\"Ошибка параметров ввода\",C6=\"Ошибка параметров ввода\",C7=\"Ошибка параметров ввода\",C8=\"Ошибка параметров ввода\"),0,1)","v":1},{"$f":"IF(A3=1,A3,)","v":1},{"$f":"IFERROR(VLOOKUP(Конфигуратор!$B$18&Конфигуратор!$B$22&Конфигуратор!$B$24&Конфигуратор!$B$26&Конфигуратор!$B$20,Наименование!$M:$N,2,0),\"Ошибка параметров ввода\")","v":"M22P-FLLRP"},{"$f":"IFERROR(VLOOKUP(C4,Наименование!$A:$B,2,0),\"\")","v":"Головка кнопки плоская прозрачная с фиксацией, красная"},{"$f":"IF(C4=\"\",\"\",1)","v":1},{"$f":"VLOOKUP(C4,Наименование!A:O,15,0)","v":"https://www.dkc.ru/ru/catalog/2028/M22P-FLLRP/"}]
[{"$f":"IF(OR(C6=\"\",C4=\"Ошибка параметров ввода\",C5=\"Ошибка параметров ввода\",C6=\"Ошибка параметров ввода\",C7=\"Ошибка параметров ввода\",C8=\"Ошибка параметров ввода\"),0,1)","v":1},{"$f":"IF(A4>0,A4+B4,)","v":2},{"$f":"IF(C4=\"Ошибка параметров ввода\",\"\",\"M22MF\")","v":"M22MF"},{"$f":"IFERROR(VLOOKUP(C5,Наименование!$A:$B,2,0),\"\")","v":"Монтажное основание для крепления головок кнопок, переключателей и контактных блоков"},{"$f":"IF(C5=\"\",\"\",1)","v":1},{"$f":"VLOOKUP(C5,Наименование!A:O,15,0)","v":"https://www.dkc.ru/ru/catalog/2028/M22MF/"}]
[{"$f":"IF(OR(C7=\"\",C4=\"Ошибка параметров ввода\",C5=\"Ошибка параметров ввода\",C6=\"Ошибка параметров ввода\",C7=\"Ошибка параметров ввода\",C8=\"Ошибка параметров ввода\"),0,1)","v":1},{"$f":"IF(A5>0,A5+A4+A3,)","v":3},{"$f":"IFERROR(IF(Конфигуратор!$B$20=\"\",VLOOKUP(Конфигуратор!$B$24&Конфигуратор!$B$28&\"Нет\"&Конфигуратор!$B$38,Наименование!$M:$N,2,0),VLOOKUP(Конфигуратор!$B$24&Конфигуратор!$B$28&Конфигуратор!$B$20&Конфигуратор!$B$38,Наименование!$M:$N,2,0)),IF(Конфигуратор!$B$20=\"Да\",\"Ошибка параметров ввода\",\"\"))","v":"MC-L220RPS"},{"$f":"IFERROR(VLOOKUP(C6,Наименование!$A:$B,2,0),\"\")","v":"Контактный блок с клеммными зажимами под винт со светодиодом на  220В, красный"},{"$f":"IF(C6=\"\",\"\",1)","v":1},{"$f":"VLOOKUP(C6,Наименование!A:O,15,0)","v":"https://www.dkc.ru/ru/catalog/2028/MC-L220RPS/"}]
[{"$f":"IF(OR(C8=\"\",C4=\"Ошибка параметров ввода\",C5=\"Ошибка параметров ввода\",C6=\"Ошибка параметров ввода\",C7=\"Ошибка параметров ввода\",C8=\"Ошибка параметров ввода\"),0,1)","v":1},{"$f":"IF(A6>0,A6+A5+A4+A3,)","v":4},{"$f":"IF(Конфигуратор!$B$30=\"Да\",IF(Лист1!E7=0,\"Ошибка параметров ввода\",IFERROR(VLOOKUP(Конфигуратор!$B$28&Конфигуратор!$B$30&\"Нет\",Наименование!$M:$N,2,0),\"\")),IF(Конфигуратор!$B$34=\"Нет\",\"Ошибка параметров ввода\",\"\"))","v":"MC-NOPS"},{"$f":"IFERROR(VLOOKUP(C7,Наименование!$A:$B,2,0),\"\")","v":"Контактный блок с клеммными зажимами под винт, нормально-открытый"},{"$f":"Конфигуратор!$B$32","v":1},{"$f":"VLOOKUP(C7,Наименование!A:O,15,0)","v":"https://www.dkc.ru/ru/catalog/2028/MC-NOPS/"},"Пустая ячейка для заполнения",null,null," "]
[null,{"$f":"IF(A7>0,A7+A6+A5+A3+A4,)","v":5},{"$f":"IF(Конфигуратор!$B$34=\"Да\",IF(Лист1!E8=0,\"Ошибка параметров ввода\",IFERROR(VLOOKUP(Конфигуратор!$B$28&\"Нет\"&Конфигуратор!$B$34,Наименование!$M:$N,2,0),\"\")),IF(Конфигуратор!$B$30=\"Нет\",\"Ошибка параметров ввода\",\"\"))","v":"MC-NCPS"},{"$f":"IFERROR(VLOOKUP(C8,Наименование!$A:$B,2,0),\"\")","v":"Контактный блок с клеммными зажимами под винт, нормально-замкнутый"},{"$f":"Конфигуратор!$B$36","v":2},{"$f":"VLOOKUP(C8,Наименование!A:O,15,0)","v":"https://www.dkc.ru/ru/catalog/2028/MC-NCPS/"}]
[null,{"$f":"IF(B3=0,0,\"\")","v":""}]
[{"$f":"IF(OR(C11=\"\",C11=\"Ошибка параметров ввода\",C12=\"Ошибка параметров ввода\",C13=\"Ошибка параметров ввода\",C14=\"Ошибка параметров ввода\",C15=\"Ошибка параметров ввода\"),0,1)","v":0},{"$f":"IF(SUM(A10:A14)=0,,\"Переключатель\")","v":0}]
[{"$f":"IF(OR(C12=\"\",C11=\"Ошибка параметров ввода\",C12=\"Ошибка параметров ввода\",C13=\"Ошибка параметров ввода\",C14=\"Ошибка параметров ввода\",C15=\"Ошибка параметров ввода\"),0,1)","v":0},{"$f":"IF(A10=1,A10,)","v":0},{"$f":"IFERROR(VLOOKUP(Конфигуратор!$B$43&Конфигуратор!$B$47&Конфигуратор!$B$49&Конфигуратор!$B$45,Наименование!$M:$N,2,0),\"Ошибка параметров ввода\")","v":"Ошибка параметров ввода"},{"$f":"IFERROR(VLOOKUP(C11,Наименование!$A:$B,2,0),\"\")","v":""},{"$f":"IF(C11=\"\",\"\",1)","v":1},{"$f":"VLOOKUP(C11,Наименование!A:O,15,0)","v":{"$error":"#N/A"}}]
[{"$f":"IF(OR(C13=\"\",C11=\"Ошибка параметров ввода\",C12=\"Ошибка параметров ввода\",C13=\"Ошибка параметров ввода\",C14=\"Ошибка параметров ввода\",C15=\"Ошибка параметров ввода\"),0,1)","v":0},{"$f":"IF(A11>0,A11+B11,)","v":0},{"$f":"IF(C11=\"Ошибка параметров ввода\",\"\",\"M22MF\")","v":""},{"$f":"IFERROR(VLOOKUP(C12,Наименование!$A:$B,2,0),\"\")","v":""},{"$f":"IF(C12=\"\",\"\",1)","v":""},{"$f":"VLOOKUP(C12,Наименование!A:O,15,0)","v":{"$error":"#N/A"}}]
[{"$f":"IF(OR(C14=\"\",C11=\"Ошибка параметров ввода\",C12=\"Ошибка параметров ввода\",C13=\"Ошибка параметров ввода\",C14=\"Ошибка параметров ввода\",C15=\"Ошибка параметров ввода\"),0,1)","v":0},{"$f":"IF(A12>0,A12+A11+A10,)","v":0},{"$f":"IFERROR(IF(Конфигуратор!$B$51=\"Да\",VLOOKUP(Конфигуратор!$B$55&Конфигуратор!$B$57&Конфигуратор!$B$51&Конфигуратор!$B$53,Наименование!$M:$N,2,0),\"\"),\"\")","v":""},{"$f":"IFERROR(VLOOKUP(C13,Наименование!$A:$B,2,0),\"\")","v":""},{"$f":"IF(C13=\"\",\"\",1)","v":""},{"$f":"VLOOKUP(C13,Наименование!A:O,15,0)","v":{"$error":"#N/A"}}]
[{"$f":"IF(OR(C15=\"\",C11=\"Ошибка параметров ввода\",C12=\"Ошибка параметров ввода\",C13=\"Ошибка параметров ввода\",C14=\"Ошибка параметров ввода\",C15=\"Ошибка параметров ввода\"),0,1)","v":0},{"$f":"IF(A13>0,A13+A12+A11+A10,)","v":0},{"$f":"IF(Конфигуратор!$B$59=\"Да\",IF(Лист1!E14=0,\"Ошибка параметров ввода\",IFERROR(VLOOKUP(Конфигуратор!$B$57&Конфигуратор!$B$59&\"Нет\",Наименование!$M:$N,2,0),\"\")),IF(Конфигуратор!$B$63=\"Нет\",\"Ошибка параметров ввода\",\"\"))","v":""},{"$f":"IFERROR(VLOOKUP(C14,Наименование!$A:$B,2,0),\"\")","v":""},{"$f":"Конфигуратор!$B$61","v":""},{"$f":"VLOOKUP(C14,Наименование!A:O,15,0)","v":{"$error":"#N/A"}}]
[null,{"$f":"IF(A14>0,A14+A13+A12+A10+A11,)","v":0},{"$f":"IF(Конфигуратор!$B$63=\"Да\",IF(Лист1!E15=0,\"Ошибка параметров ввода\",IFERROR(VLOOKUP(Конфигуратор!$B$57&\"Нет\"&Конфигуратор!$B$63,Наименование!$M:$N,2,0),\"\")),IF(Конфигуратор!$B$59=\"Нет\",\"Ошибка параметров ввода\",\"\"))","v":""},{"$f":"IFERROR(VLOOKUP(C15,Наименование!$A:$B,2,0),\"\")","v":""},{"$f":"Конфигуратор!$B$65","v":""},{"$f":"VLOOKUP(C15,Наименование!A:O,15,0)","v":{"$error":"#N/A"}}]
[null,{"$f":"IF(B10=0,0,\"\")","v":0}]
[{"$f":"IF(C18=\"\",0,1)","v":0},{"$f":"IF(A17=0,,\"Сигнальный индикатор\")","v":0}]
[null,{"$f":"IF(A17>0,A17,)","v":0},{"$f":"IFERROR(VLOOKUP(Конфигуратор!$B$70&Конфигуратор!$B$76&Конфигуратор!$B$74&Конфигуратор!$B$72,Наименование!$M:$N,2,0),\"\")","v":""},{"$f":"IFERROR(VLOOKUP(C18,Наименование!A:B,2,0),\"\")","v":""},{"$f":"IF(C18=\"\",\"\",1)","v":""},{"$f":"VLOOKUP(C18,Наименование!A:O,15,0)","v":{"$error":"#N/A"}}]
[{"$f":"MAX(A3:A18)","v":1},{"$f":"IF(B17=0,0,\"\")","v":0},null,null,null,null,null,"J","B","Правила заполнения"]
[null,null,null,null,null,null,null,20,20,{"$f":"IF(Конфигуратор!$B$18=\"Грибовидная\",\"Да\",IF(Конфигуратор!$B$24=\"Чёрный\",\"Нет\",\"\"))","v":""}]
[]
[null,null,null,null,null,null,null,22,22,{"$f":"IF(Конфигуратор!$B$18=\"Грибовидная\",\"С фиксацией\",IF(Конфигуратор!$B$24=\"Чёрный\",\"Без фиксации\",IF(Конфигуратор!$B$20=\"Нет\",\"Без фиксации\",\"\")))","v":""}]
[]
[null,null,null,null,null,null,null,23,24,{"$f":"IF(Конфигуратор!$B$18=\"Грибовидная\",\"Красный\",\"\")","v":""}]
[]
[null,null,null,null,null,null,null,26,26]
[]
[null,null,null,null,null,null,null,28,32,{"$f":"IF(Конфигуратор!$B$30=\"Нет\",0,$J$7)","v":" "}]
[]
[null,null,null,null,null,null,null,30,36,{"$f":"IF(Конфигуратор!$B$34=\"Нет\",0,$J$7)","v":" "}]
[]
[null,null,null,null,null,null,null,32,38,{"$f":"IF(Конфигуратор!$B$20=\"Нет\",\"Нет\",$J$7)","v":" "}]
[]
[null,null,null,null,null,null,null,34,49]
[]
[null,null,null,null,null,null,null,36,51,{"$f":"IF(Конфигуратор!$B$47<>\"\",\"Да\",\"\")","v":""}]
[]
[null,null,null,null,null,null,null,38,61,{"$f":"IF(Конфигуратор!$B$59=\"Нет\",0,$J$7)","v":" "}]
[]
[null,null,null,null,null,null,null,40,65,{"$f":"IF(Конфигуратор!$B$63=\"Нет\",0,$J$7)","v":" "}]
[]
[null,null,null,null,null,null,null,42,74,{"$f":"IF(Конфигуратор!$B$72<>\"\",\"Безвинтовой Plug-In\",\"\")","v":""}]

{"sheet":"Наименование","index":2,"n_rows":104,"n_cols":15,"rows_kept":104,"cut":false,"hidden":true,"merged":[]}
["Артикул","Наименование","1.Вид кнопки","8.С возможностью подсветки","2.Механизм","3.Цвет","4.Материал кольца","5. Тип зажима контактного блока","6.Наличие NO контактов","7.Наличие NC контактов","9.Напряжение сети","Положения",null,"Артикул","Ссылка"]
["M22P-FLLRP","Головка кнопки плоская прозрачная с фиксацией, красная","Плоская","Да","С фиксацией","Красный","Пластик",null,null,null,null,null,{"$f":"C2&E2&F2&G2&H2&I2&J2&D2&K2&L2","v":"ПлоскаяС фиксациейКрасныйПластикДа"},"M22P-FLLRP","https://www.dkc.ru/ru/catalog/2028/M22P-FLLRP/"]
["M22P-FLLGP","Головка кнопки плоская прозрачная с фиксацией, зеленая","Плоская","Да","С фиксацией","Зелёный","Пластик",null,null,null,null,null,{"$f":"C3&E3&F3&G3&H3&I3&J3&D3&K3&L3","v":"ПлоскаяС фиксациейЗелёныйПластикДа"},"M22P-FLLGP","https://www.dkc.ru/ru/catalog/2028/M22P-FLLGP/"]
["M22P-FLLBP","Головка кнопки плоская прозрачная с фиксацией, синяя","Плоская","Да","С фиксацией","Синий","Пластик",null,null,null,null,null,"ПлоскаяС фиксациейСинийПластикДа","M22P-FLLBP","https://www.dkc.ru/ru/catalog/2028/M22P-FLLBP/"]
["M22P-FLLYP","Головка кнопки плоская прозрачная с фиксацией, жёлтая","Плоская","Да","С фиксацией","Жёлтый","Пластик",null,null,null,null,null,"ПлоскаяС фиксациейЖёлтыйПластикДа","M22P-FLLYP","https://www.dkc.ru/ru/catalog/2028/M22P-FLLYP/"]
["M22P-FLLWP","Головка кнопки плоская прозрачная с фиксацией, белая","Плоская","Да","С фиксацией","Белый","Пластик",null,null,null,null,null,"ПлоскаяС фиксациейБелыйПластикДа","M22P-FLLWP","https://www.dkc.ru/ru/catalog/2028/M22P-FLLWP/"]
["M22P-FMLRP","Головка кнопки плоская прозрачная без фиксации, красная","Плоская","Да","Без фиксации","Красный","Пластик",null,null,null,null,null,"ПлоскаяБез фиксацииКрасныйПластикДа","M22P-FMLRP","https://www.dkc.ru/ru/catalog/2028/M22P-FMLRP/"]
["M22P-FMLGP","Головка кнопки плоская  прозрачная без фиксации, зеленая","Плоская","Да","Без фиксации","Зелёный","Пластик",null,null,null,null,null,"ПлоскаяБез фиксацииЗелёныйПластикДа","M22P-FMLGP","https://www.dkc.ru/ru/catalog/2028/M22P-FMLGP/"]
["M22P-FMLYP","Головка кнопки плоская прозрачная без фиксации, желтая","Плоская","Да","Без фиксации","Жёлтый","Пластик",null,null,null,null,null,"ПлоскаяБез фиксацииЖёлтыйПластикДа","M22P-FMLYP","https://www.dkc.ru/ru/catalog/2028/M22P-FMLYP/"]
["M22P-FMLBP","Головка кнопки плоская прозрачная без фиксации, синяя","Плоская","Да","Без фиксации","Синий","Пластик",null,null,null,null,null,"ПлоскаяБез фиксацииСинийПластикДа","M22P-FMLBP","https://www.dkc.ru/ru/catalog/2028/M22P-FMLBP/"]
["M22P-FMLWP","Головка кнопки плоская прозрачная без фиксации, белая","Плоская","Да","Без фиксации","Белый","Пластик",null,null,null,null,null,"ПлоскаяБез фиксацииБелыйПластикДа","M22P-FMLWP","https://www.dkc.ru/ru/catalog/2028/M22P-FMLWP/"]
["M22P-FMRP","Головка кнопки плоская без фиксации, красная","Плоская","Нет","Без фиксации","Красный","Пластик",null,null,null,null,null,"ПлоскаяБез фиксацииКрасныйПластикНет","M22P-FMRP","https://www.dkc.ru/ru/catalog/2028/M22P-FMRP/"]
["M22P-FMGP","Головка кнопки плоская без фиксации, зеленая","Плоская","Нет","Без фиксации","Зелёный","Пластик",null,null,null,null,null,"ПлоскаяБез фиксацииЗелёныйПластикНет","M22P-FMGP","https://www.dkc.ru/ru/catalog/2028/M22P-FMGP/"]
["M22P-FMBP","Головка кнопки плоская без фиксации, синяя","Плоская","Нет","Без фиксации","Синий","Пластик",null,null,null,null,null,"ПлоскаяБез фиксацииСинийПластикНет","M22P-FMBP","https://www.dkc.ru/ru/catalog/2028/M22P-FMBP/"]
["M22P-FMWP","Головка кнопки плоская без фиксации, белая","Плоская","Нет","Без фиксации","Белый","Пластик",null,null,null,null,null,"ПлоскаяБез фиксацииБелыйПластикНет","M22P-FMWP","https://www.dkc.ru/ru/catalog/2028/M22P-FMWP/"]
["M22P-FMYP","Головка кнопки плоская без фиксации, жёлтая","Плоская","Нет","Без фиксации","Жёлтый","Пластик",null,null,null,null,null,"ПлоскаяБез фиксацииЖёлтыйПластикНет","M22P-FMYP","https://www.dkc.ru/ru/catalog/2028/M22P-FMYP/"]
["M22P-FMBLP","Головка кнопки плоская без фиксации, черная","Плоская","Нет","Без фиксации","Чёрный","Пластик",null,null,null,null,null,"ПлоскаяБез фиксацииЧёрныйПластикНет","M22P-FMBLP","https://www.dkc.ru/ru/catalog/2028/M22P-FMBLP/"]
["M22E-MLLRP","Головка кнопки аварийная грибовидная поворотная д.40","Грибовидная","Да","С фиксацией","Красный","Пластик",null,null,null,null,null,"ГрибовиднаяС фиксациейКрасныйПластикДа","M22E-MLLRP","https://www.dkc.ru/ru/catalog/2028/M22E-MLLRP/"]
["M22L-F220RPP","Сигнальный индикатор со встроенным диодом 220В, красный, зажим Plug-In",null,null,null,"Красный","Пластик","Безвинтовой Plug-In",null,null,"220 В",null,"КрасныйПластикБезвинтовой Plug-In220 В","M22L-F220RPP","https://www.dkc.ru/ru/catalog/2028/M22L-F220RPP/"]
["M22L-F24RPP","Сигнальный индикатор со встроенным диодом 24В, красный, зажим Plug-In",null,null,null,"Красный","Пластик","Безвинтовой Plug-In",null,null,"9-24 В",null,"КрасныйПластикБезвинтовой Plug-In9-24 В","M22L-F24RPP","https://www.dkc.ru/ru/catalog/2028/M22L-F24RPP/"]
["M22L-F220GPP","Сигнальный индикатор со встроенным диодом 220В, зеленый, зажим Plug-In",null,null,null,"Зелёный","Пластик","Безвинтовой Plug-In",null,null,"220 В",null,"ЗелёныйПластикБезвинтовой Plug-In220 В","M22L-F220GPP","https://www.dkc.ru/ru/catalog/2028/M22L-F220GPP/"]
["M22L-F24GPP","Сигнальный индикатор со встроенным диодом 24В, зеленый, зажим Plug-In",null,null,null,"Зелёный","Пластик","Безвинтовой Plug-In",null,null,"9-24 В",null,"ЗелёныйПластикБезвинтовой Plug-In9-24 В","M22L-F24GPP","https://www.dkc.ru/ru/catalog/2028/M22L-F24GPP/"]
["M22L-F220YPP","Сигнальный индикатор со встроенным диодом 220В, желтый, зажим Plug-In",null,null,null,"Жёлтый","Пластик","Безвинтовой Plug-In",null,null,"220 В",null,"ЖёлтыйПластикБезвинтовой Plug-In220 В","M22L-F220YPP","https://www.dkc.ru/ru/catalog/2028/M22L-F220YPP/"]
["M22L-F24YPP","Сигнальный индикатор со встроенным диодом 24В, желтый, зажим Plug-In",null,null,null,"Жёлтый","Пластик","Безвинтовой Plug-In",null,null,"9-24 В",null,"ЖёлтыйПластикБезвинтовой Plug-In9-24 В","M22L-F24YPP","https://www.dkc.ru/ru/catalog/2028/M22L-F24YPP/"]
["M22L-F220WPP","Сигнальный индикатор со встроенным диодом 220В, белый, зажим Plug-In",null,null,null,"Белый","Пластик","Безвинтовой Plug-In",null,null,"220 В",null,"БелыйПластикБезвинтовой Plug-In220 В","M22L-F220WPP","https://www.dkc.ru/ru/catalog/2028/M22L-F220WPP/"]
["M22L-F24WPP","Сигнальный индикатор со встроенным диодом 24В, белый, зажим Plug-In",null,null,null,"Белый","Пластик","Безвинтовой Plug-In",null,null,"9-24 В",null,"БелыйПластикБезвинтовой Plug-In9-24 В","M22L-F24WPP","https://www.dkc.ru/ru/catalog/2028/M22L-F24WPP/"]
["M22L-F220BPP","Сигнальный индикатор со встроенным диодом 220В, синий, зажим Plug-In",null,null,null,"Синий","Пластик","Безвинтовой Plug-In",null,null,"220 В",null,"СинийПластикБезвинтовой Plug-In220 В","M22L-F220BPP","https://www.dkc.ru/ru/catalog/2028/M22L-F220BPP/"]
["M22L-F24BPP","Сигнальный индикатор со встроенным диодом 24В, синий, зажим Plug-In",null,null,null,"Синий","Пластик","Безвинтовой Plug-In",null,null,"9-24 В",null,"СинийПластикБезвинтовой Plug-In9-24 В","M22L-F24BPP","https://www.dkc.ru/ru/catalog/2028/M22L-F24BPP/"]
["M22S-M2A","Головака переключателя на 2 положения с возвратом стандартная ручка, алюминий","Без ключа",null,"Без фиксации",null,"Алюминий",null,null,null,null,2,"Без ключаБез фиксацииАлюминий2","M22S-M2A","https://www.dkc.ru/ru/catalog/2028/M22S-M2A/"]
["M22S-L2A","Головака переключателя на 2 положения с фиксацией стандартная ручка, алюминий","Без ключа",null,"С фиксацией",null,"Алюминий",null,null,null,null,2,"Без ключаС фиксациейАлюминий2","M22S-L2A","https://www.dkc.ru/ru/catalog/2028/M22S-L2A/"]
["M22S-M3A","Головака переключателя на 3 положения с возвратом стандартная ручка, алюминий","Без ключа",null,"Без фиксации",null,"Алюминий",null,null,null,null,3,"Без ключаБез фиксацииАлюминий3","M22S-M3A","https://www.dkc.ru/ru/catalog/2028/M22S-M3A/"]
["M22S-L3A","Головака переключателя на 3 положения с фиксацией стандартная ручка, алюминий","Без ключа",null,"С фиксацией",null,"Алюминий",null,null,null,null,3,"Без ключаС фиксациейАлюминий3","M22S-L3A","https://www.dkc.ru/ru/catalog/2028/M22S-L3A/"]
["M22S-KM2A","Головака переключателя с ключом на 2 положения с возвратом стандартная ручка, алюминий","С ключом",null,"Без фиксации",null,"Алюминий",null,null,null,null,2,"С ключомБез фиксацииАлюминий2","M22S-KM2A","https://www.dkc.ru/ru/catalog/2028/M22S-KM2A/"]
["M22S-KL2A","Головака переключателя с ключом на 2 положения с фиксацией стандартная ручка, алюминий","С ключом",null,"С фиксацией",null,"Алюминий",null,null,null,null,2,"С ключомС фиксациейАлюминий2","M22S-KL2A","https://www.dkc.ru/ru/catalog/2028/M22S-KL2A/"]
["M22S-KM3A","Головака переключателя с ключом на 3 положения с возвратом стандартная ручка, алюминий","С ключом",null,"Без фиксации",null,"Алюминий",null,null,null,null,3,"С ключомБез фиксацииАлюминий3","M22S-KM3A","https://www.dkc.ru/ru/catalog/2028/M22S-KM3A/"]
["M22S-KL3A","Головака переключателя с ключом на 3 положения с фиксацией стандартная ручка, алюминий","С ключом",null,"С фиксацией",null,"Алюминий",null,null,null,null,3,"С ключомС фиксациейАлюминий3","M22S-KL3A","https://www.dkc.ru/ru/catalog/2028/M22S-KL3A/"]
["MC-NOPP","Контактный блок с клеммным безвинтовым  зажимом, нормально-открытый",null,null,null,null,null,"Безвинтовой Plug-In","Да","Нет",null,null,"Безвинтовой Plug-InДаНет","MC-NOPP","https://www.dkc.ru/ru/catalog/2028/MC-NOPP/"]
["MC-NCPP","Контактный блок  с клеммным безвинтовым зажимом, нормально-замкнутый",null,null,null,null,null,"Безвинтовой Plug-In","Нет","Да",null,null,"Безвинтовой Plug-InНетДа","MC-NCPP","https://www.dkc.ru/ru/catalog/2028/MC-NCPP/"]
["MC-L24RPP","Контактный  блок с клеммным безвинтовым зажимом со светодиодом на 9-24В, красный",null,"Да",null,"Красный",null,"Безвинтовой Plug-In",null,null,"9-24 В",null,"КрасныйБезвинтовой Plug-InДа9-24 В","MC-L24RPP","https://www.dkc.ru/ru/catalog/2028/MC-L24RPP/"]
["MC-L24GPP","Контактный  блок с клеммным безвинтовым зажимом со светодиодом на 9-24В, зелёный",null,"Да",null,"Зелёный",null,"Безвинтовой Plug-In",null,null,"9-24 В",null,"ЗелёныйБезвинтовой Plug-InДа9-24 В","MC-L24GPP","https://www.dkc.ru/ru/catalog/2028/MC-L24GPP/"]
["MC-L24BPP","Контактный  блок с клеммным безвинтовым зажимом со светодиодом на 9-24В, синий",null,"Да",null,"Синий",null,"Безвинтовой Plug-In",null,null,"9-24 В",null,"СинийБезвинтовой Plug-InДа9-24 В","MC-L24BPP","https://www.dkc.ru/ru/catalog/2028/MC-L24BPP/"]
["MC-L24YPP","Контактный  блок с клеммным безвинтовым зажимом со светодиодом на 9-24В, жёлтый",null,"Да",null,"Жёлтый",null,"Безвинтовой Plug-In",null,null,"9-24 В",null,"ЖёлтыйБезвинтовой Plug-InДа9-24 В","MC-L24YPP","https://www.dkc.ru/ru/catalog/2028/MC-L24YPP/"]
["MC-L24WPP","Контактный  блок с клеммным безвинтовым зажимом со светодиодом на 9-24В, белый",null,"Да",null,"Белый",null,"Безвинтовой Plug-In",null,null,"9-24 В",null,"БелыйБезвинтовой Plug-InДа9-24 В","MC-L24WPP","https://www.dkc.ru/ru/catalog/2028/MC-L24WPP/"]
["MC-L220RPP","Контактный  блок с клеммным безвинтовым зажимом со светодиодом на 220В, красный",null,"Да",null,"Красный",null,"Безвинтовой Plug-In",null,null,"220 В",null,"КрасныйБезвинтовой Plug-InДа220 В","MC-L220RPP","https://www.dkc.ru/ru/catalog/2028/MC-L220RPP/"]
["MC-L220GPP","Контактный  блок с клеммным безвинтовым зажимом со светодиодом на 220В, зелёный",null,"Да",null,"Зелёный",null,"Безвинтовой Plug-In",null,null,"220 В",null,"ЗелёныйБезвинтовой Plug-InДа220 В","MC-L220GPP","https://www.dkc.ru/ru/catalog/2028/MC-L220GPP/"]
["MC-L220BPP","Контактный  блок с клеммным безвинтовым зажимом со светодиодом на 220В, синий",null,"Да",null,"Синий",null,"Безвинтовой Plug-In",null,null,"220 В",null,"СинийБезвинтовой Plug-InДа220 В","MC-L220BPP","https://www.dkc.ru/ru/catalog/2028/MC-L220BPP/"]
["MC-L220YPP","Контактный  блок с клеммным безвинтовым зажимом со светодиодом на 220В, жёлтый",null,"Да",null,"Жёлтый",null,"Безвинтовой Plug-In",null,null,"220 В",null,"ЖёлтыйБезвинтовой Plug-InДа220 В","MC-L220YPP","https://www.dkc.ru/ru/catalog/2028/MC-L220YPP/"]
["MC-L220WPP","Контактный  блок с клеммным безвинтовым зажимом со светодиодом на 220В, белый",null,"Да",null,"Белый",null,"Безвинтовой Plug-In",null,null,"220 В",null,"БелыйБезвинтовой Plug-InДа220 В","MC-L220WPP","https://www.dkc.ru/ru/catalog/2028/MC-L220WPP/"]
["MC-NOPS","Контактный блок с клеммными зажимами под винт, нормально-открытый",null,null,null,null,null,"Винтовой","Да","Нет",null,null,"ВинтовойДаНет","MC-NOPS","https://www.dkc.ru/ru/catalog/2028/MC-NOPS/"]
["MC-NCPS","Контактный блок с клеммными зажимами под винт, нормально-замкнутый",null,null,null,null,null,"Винтовой","Нет","Да",null,null,"ВинтовойНетДа","MC-NCPS","https://www.dkc.ru/ru/catalog/2028/MC-NCPS/"]
["MC-L24RPS","Контактный блок с клеммными зажимами под винт со светодиодом на  9-24В, красный",null,"Да",null,"Красный",null,"Винтовой",null,null,"9-24 В",null,"КрасныйВинтовойДа9-24 В","MC-L24RPS","https://www.dkc.ru/ru/catalog/2028/MC-L24RPS/"]
["MC-L24GPS","Контактный блок с клеммными зажимами под винт со светодиодом на  9-24В, зелёный",null,"Да",null,"Зелёный",null,"Винтовой",null,null,"9-24 В",null,"ЗелёныйВинтовойДа9-24 В","MC-L24GPS","https://www.dkc.ru/ru/catalog/2028/MC-L24GPS/"]
["MC-L24BPS","Контактный блок с клеммными зажимами под винт со светодиодом на  9-24В, синий",null,"Да",null,"Синий",null,"Винтовой",null,null,"9-24 В",null,"СинийВинтовойДа9-24 В","MC-L24BPS","https://www.dkc.ru/ru/catalog/2028/MC-L24BPS/"]
["MC-L24YPS","Контактный блок с клеммными зажимами под винт со светодиодом на  9-24В, жёлтый",null,"Да",null,"Жёлтый",null,"Винтовой",null,null,"9-24 В",null,"ЖёлтыйВинтовойДа9-24 В","MC-L24YPS","https://www.dkc.ru/ru/catalog/2028/MC-L24YPS/"]
["MC-L24WPS","Контактный блок с клеммными зажимами под винт со светодиодом на  9-24В, белый",null,"Да",null,"Белый",null,"Винтовой",null,null,"9-24 В",null,"БелыйВинтовойДа9-24 В","MC-L24WPS","https://www.dkc.ru/ru/catalog/2028/MC-L24WPS/"]
["MC-L220RPS","Контактный блок с клеммными зажимами под винт со светодиодом на  220В, красный",null,"Да",null,"Красный",null,"Винтовой",null,null,"220 В",null,"КрасныйВинтовойДа220 В","MC-L220RPS","https://www.dkc.ru/ru/catalog/2028/MC-L220RPS/"]
["MC-L220GPS","Контактный блок с клеммными зажимами под винт со светодиодом на  220В, зелёный",null,"Да",null,"Зелёный",null,"Винтовой",null,null,"220 В",null,"ЗелёныйВинтовойДа220 В","MC-L220GPS","https://www.dkc.ru/ru/catalog/2028/MC-L220GPS/"]
["MC-L220BPS","Контактный блок с клеммными зажимами под винт со светодиодом на  220В, синий",null,"Да",null,"Синий",null,"Винтовой",null,null,"220 В",null,"СинийВинтовойДа220 В","MC-L220BPS","https://www.dkc.ru/ru/catalog/2028/MC-L220BPS/"]
["MC-L220YPS","Контактный блок с клеммными зажимами под винт со светодиодом на  220В, жёлтый",null,"Да",null,"Жёлтый",null,"Винтовой",null,null,"220 В",null,"ЖёлтыйВинтовойДа220 В","MC-L220YPS","https://www.dkc.ru/ru/catalog/2028/MC-L220YPS/"]
["MC-L220WPS","Контактный блок с клеммными зажимами под винт со светодиодом на  220В, белый",null,"Да",null,"Белый",null,"Винтовой",null,null,"220 В",null,"БелыйВинтовойДа220 В","MC-L220WPS","https://www.dkc.ru/ru/catalog/2028/MC-L220WPS/"]
["M22MF","Монтажное основание для крепления головок кнопок, переключателей и контактных блоков",1,null,null,null,null,null,null,null,null,null,"1","M22MF ","https://www.dkc.ru/ru/catalog/2028/M22MF/"]
["M22ML","Маркировочная табличка",1,null,null,null,null,null,null,null,null,null,"1","M22ML","https://www.dkc.ru/ru/catalog/2028/M22ML/"]
["M22EP","Защита грибовидной кнопки",1,null,null,null,null,null,null,null,null,null,"1","M22EP","https://www.dkc.ru/ru/catalog/2028/M22EP/"]
["M22EPC","Защита грибовидной кнопки с крышкой",1,null,null,null,null,null,null,null,null,null,"1","M22EPC","https://www.dkc.ru/ru/catalog/2028/M22EPC/"]
["MC01","Корпус под кнопочный пост, 1 место",1,null,null,null,null,null,null,null,null,null,"1","MC01","https://www.dkc.ru/ru/catalog/2028/MC01/"]
["MC02","Корпус под кнопочный пост, 2 места",1,null,null,null,null,null,null,null,null,null,"1","MC02","https://www.dkc.ru/ru/catalog/2028/MC02/"]
["MC03","Корпус под кнопочный пост, 3 места",1,null,null,null,null,null,null,null,null,null,{"$f":"C67&E67&F67&G67&H67&I67&J67&D67&K67&L67","v":"1"},"MC03","https://www.dkc.ru/ru/catalog/2028/MC03/"]
["MC04","Корпус под кнопочный пост, 4 места",1,null,null,null,null,null,null,null,null,null,"1","MC04","https://www.dkc.ru/ru/catalog/2028/MC04/"]
["MC06","Корпус под кнопочный пост, 6 мест",1,null,null,null,null,null,null,null,null,null,"1","MC06","https://www.dkc.ru/ru/catalog/2028/MC06/"]
["M22P-FLLRA","Головка кнопки плоская прозрачная с фиксацией, красная, алюминий","Плоская","Да","С фиксацией","Красный","Алюминий",null,null,null,null,null,{"$f":"C70&E70&F70&G70&H70&I70&J70&D70&K70&L70","v":"ПлоскаяС фиксациейКрасныйАлюминийДа"},"M22P-FLLRA","https://www.dkc.ru/ru/catalog/2028/M22P-FLLRA/"]
["M22P-FLLGA","Головка кнопки плоская прозрачная с фиксацией, зеленая, алюминий","Плоская","Да","С фиксацией","Зелёный","Алюминий",null,null,null,null,null,{"$f":"C71&E71&F71&G71&H71&I71&J71&D71&K71&L71","v":"ПлоскаяС фиксациейЗелёныйАлюминийДа"},"M22P-FLLGA","https://www.dkc.ru/ru/catalog/2028/M22P-FLLGA/"]
["M22P-FLLBA","Головка кнопки плоская прозрачная с фиксацией, синяя, алюминий","Плоская","Да","С фиксацией","Синий","Алюминий",null,null,null,null,null,"ПлоскаяС фиксациейСинийАлюминийДа","M22P-FLLBA","https://www.dkc.ru/ru/catalog/2028/M22P-FLLBA/"]
["M22P-FLLYA","Головка кнопки плоская прозрачная с фиксацией, жёлтая, алюминий","Плоская","Да","С фиксацией","Жёлтый","Алюминий",null,null,null,null,null,"ПлоскаяС фиксациейЖёлтыйАлюминийДа","M22P-FLLYA","https://www.dkc.ru/ru/catalog/2028/M22P-FLLYA/"]
["M22P-FLLWA","Головка кнопки плоская прозрачная с фиксацией, белая, алюминий","Плоская","Да","С фиксацией","Белый","Алюминий",null,null,null,null,null,"ПлоскаяС фиксациейБелыйАлюминийДа","M22P-FLLWA","https://www.dkc.ru/ru/catalog/2028/M22P-FLLWA/"]
["M22P-FMLRA","Головка кнопки плоская прозрачная без фиксации, красная, алюминий","Плоская","Да","Без фиксации","Красный","Алюминий",null,null,null,null,null,"ПлоскаяБез фиксацииКрасныйАлюминийДа","M22P-FMLRA","https://www.dkc.ru/ru/catalog/2028/M22P-FMLRA/"]
["M22P-FMLGA","Головка кнопки плоская прозрачная без фиксации, зеленая, алюминий","Плоская","Да","Без фиксации","Зелёный","Алюминий",null,null,null,null,null,"ПлоскаяБез фиксацииЗелёныйАлюминийДа","M22P-FMLGA","https://www.dkc.ru/ru/catalog/2028/M22P-FMLGA/"]
["M22P-FMLYA","Головка кнопки плоская прозрачная без фиксации, желтая, алюминий","Плоская","Да","Без фиксации","Жёлтый","Алюминий",null,null,null,null,null,"ПлоскаяБез фиксацииЖёлтыйАлюминийДа","M22P-FMLYA","https://www.dkc.ru/ru/catalog/2028/M22P-FMLYA/"]
["M22P-FMLBA","Головка кнопки плоская прозрачная без фиксации, синяя, алюминий","Плоская","Да","Без фиксации","Синий","Алюминий",null,null,null,null,null,"ПлоскаяБез фиксацииСинийАлюминийДа","M22P-FMLBA","https://www.dkc.ru/ru/catalog/2028/M22P-FMLBA/"]
["M22P-FMLWA","Головка кнопки плоская прозрачная без фиксации, белая, алюминий","Плоская","Да","Без фиксации","Белый","Алюминий",null,null,null,null,null,"ПлоскаяБез фиксацииБелыйАлюминийДа","M22P-FMLWA","https://www.dkc.ru/ru/catalog/2028/M22P-FMLWA/"]
["M22P-FMRA","Головка кнопки плоская без фиксации, красная, алюминий","Плоская","Нет","Без фиксации","Красный","Алюминий",null,null,null,null,null,"ПлоскаяБез фиксацииКрасныйАлюминийНет","M22P-FMRA","https://www.dkc.ru/ru/catalog/2028/M22P-FMRA/"]
["M22P-FMGA","Головка кнопки плоская без фиксации, зеленая, алюминий","Плоская","Нет","Без фиксации","Зелёный","Алюминий",null,null,null,null,null,"ПлоскаяБез фиксацииЗелёныйАлюминийНет","M22P-FMGA","https://www.dkc.ru/ru/catalog/2028/M22P-FMGA/"]
["M22P-FMBA","Головка кнопки плоская без фиксации, синяя, алюминий","Плоская","Нет","Без фиксации","Синий","Алюминий",null,null,null,null,null,"ПлоскаяБез фиксацииСинийАлюминийНет","M22P-FMBA","https://www.dkc.ru/ru/catalog/2028/M22P-FMBA/"]
["M22P-FMWA","Головка кнопки плоская без фиксации, белая, алюминий","Плоская","Нет","Без фиксации","Белый","Алюминий",null,null,null,null,null,"ПлоскаяБез фиксацииБелыйАлюминийНет","M22P-FMWA","https://www.dkc.ru/ru/catalog/2028/M22P-FMWA/"]
["M22P-FMYA","Головка кнопки плоская без фиксации, жёлтая, алюминий","Плоская","Нет","Без фиксации","Жёлтый","Алюминий",null,null,null,null,null,"ПлоскаяБез фиксацииЖёлтыйАлюминийНет","M22P-FMYA","https://www.dkc.ru/ru/catalog/2028/M22P-FMYA/"]
["M22P-FMBLA","Головка кнопки плоская без фиксации, черная, алюминий","Плоская","Нет","Без фиксации","Чёрный","Алюминий",null,null,null,null,null,"ПлоскаяБез фиксацииЧёрныйАлюминийНет","M22P-FMBLA","https://www.dkc.ru/ru/catalog/2028/M22P-FMBLA/"]
["M22E-MLLRA","Головка кнопки аварийная грибовидная поворотная д.40, алюминий","Грибовидная","Да","С фиксацией","Красный","Алюминий",null,null,null,null,null,"ГрибовиднаяС фиксациейКрасныйАлюминийДа","M22E-MLLRA","https://www.dkc.ru/ru/catalog/2028/M22E-MLLRA/"]
["M22L-F220RAP","Сигнальный индикатор со встроенным диодом 220В, красный, алюминий, зажим Plug-In",null,null,null,"Красный","Алюминий","Безвинтовой Plug-In",null,null,"220 В",null,"КрасныйАлюминийБезвинтовой Plug-In220 В","M22L-F220RAP","https://www.dkc.ru/ru/catalog/2028/M22L-F220RAP/"]
["M22L-F24RAP","Сигнальный индикатор со встроенным диодом 9-24В, красный, алюминий, зажим Plug-In",null,null,null,"Красный","Алюминий","Безвинтовой Plug-In",null,null,"9-24 В",null,"КрасныйАлюминийБезвинтовой Plug-In9-24 В","M22L-F24RAP","https://www.dkc.ru/ru/catalog/2028/M22L-F24RAP/"]
["M22L-F220GAP","Сигнальный индикатор со  встроенным диодом 220В, зеленый, алюминий, зажим Plug-In",null,null,null,"Зелёный","Алюминий","Безвинтовой Plug-In",null,null,"220 В",null,"ЗелёныйАлюминийБезвинтовой Plug-In220 В","M22L-F220GAP","https://www.dkc.ru/ru/catalog/2028/M22L-F220GAP/"]
["M22L-F24GAP","Сигнальный индикатор со встроенным диодом 9-24В, зеленый, алюминий, зажим Plug-In",null,null,null,"Зелёный","Алюминий","Безвинтовой Plug-In",null,null,"9-24 В",null,"ЗелёныйАлюминийБезвинтовой Plug-In9-24 В","M22L-F24GAP","https://www.dkc.ru/ru/catalog/2028/M22L-F24GAP/"]
["M22L-F220YAP","Сигнальный индикатор со встроенным диодом 220В, желтый, алюминий, зажим Plug-In",null,null,null,"Жёлтый","Алюминий","Безвинтовой Plug-In",null,null,"220 В",null,"ЖёлтыйАлюминийБезвинтовой Plug-In220 В","M22L-F220YAP","https://www.dkc.ru/ru/catalog/2028/M22L-F220YAP/"]
["M22L-F24YAP","Сигнальный индикатор со встроенным диодом 9-24В, желтый, алюминий, зажим Plug-In",null,null,null,"Жёлтый","Алюминий","Безвинтовой Plug-In",null,null,"9-24 В",null,"ЖёлтыйАлюминийБезвинтовой Plug-In9-24 В","M22L-F24YAP","https://www.dkc.ru/ru/catalog/2028/M22L-F24YAP/"]
["M22L-F220WAP","Сигнальный индикатор со встроенным диодом 220В, белый, алюминий, зажим Plug-In",null,null,null,"Белый","Алюминий","Безвинтовой Plug-In",null,null,"220 В",null,"БелыйАлюминийБезвинтовой Plug-In220 В","M22L-F220WAP","https://www.dkc.ru/ru/catalog/2028/M22L-F220WAP/"]
["M22L-F24WAP","Сигнальный индикатор со встроенным диодом 9-24В, белый, алюминий, зажим Plug-In",null,null,null,"Белый","Алюминий","Безвинтовой Plug-In",null,null,"9-24 В",null,"БелыйАлюминийБезвинтовой Plug-In9-24 В","M22L-F24WAP","https://www.dkc.ru/ru/catalog/2028/M22L-F24WAP/"]
["M22L-F220BAP","Сигнальный индикатор со встроенным диодом 220В, синий, алюминий, зажим Plug-In",null,null,null,"Синий","Алюминий","Безвинтовой Plug-In",null,null,"220 В",null,"СинийАлюминийБезвинтовой Plug-In220 В","M22L-F220BAP","https://www.dkc.ru/ru/catalog/2028/M22L-F220BAP/"]
["M22L-F24BAP","Сигнальный индикатор со встроенным диодом 9-24В, синий, алюминий, зажим Plug-In",null,null,null,"Синий","Алюминий","Безвинтовой Plug-In",null,null,"9-24 В",null,"СинийАлюминийБезвинтовой Plug-In9-24 В","M22L-F24BAP","https://www.dkc.ru/ru/catalog/2028/M22L-F24BAP/"]
["M22S-KL2P","Головака переключателя с ключом на 2 положения с фиксацией стандартная ручка, черный","С ключом",null,"С фиксацией",null,"Пластик",null,null,null,null,2,{"$f":"C97&E97&F97&G97&H97&I97&J97&D97&K97&L97","v":"С ключомС фиксациейПластик2"},"M22S-KL2P","https://www.dkc.ru/ru/catalog/2028/M22S-KL2P/"]
["M22S-KM2P","Головака переключателя с ключом на 2 положения с возвратом стандартная ручка, черный","С ключом",null,"Без фиксации",null,"Пластик",null,null,null,null,2,{"$f":"C98&E98&F98&G98&H98&I98&J98&D98&K98&L98","v":"С ключомБез фиксацииПластик2"},"M22S-KM2P","https://www.dkc.ru/ru/catalog/2028/M22S-KM2P/"]
["M22S-KL3P","Головака переключателя с ключом на 3 положения с фиксацией стандартная ручка, черный","С ключом",null,"С фиксацией",null,"Пластик",null,null,null,null,3,"С ключомС фиксациейПластик3","M22S-KL3P","https://www.dkc.ru/ru/catalog/2028/M22S-KL3P/"]
["M22S-KM3P","Головака переключателя с ключом на 3 положения с возвратом стандартная ручка, черный","С ключом",null,"Без фиксации",null,"Пластик",null,null,null,null,3,"С ключомБез фиксацииПластик3","M22S-KM3P","https://www.dkc.ru/ru/catalog/2028/M22S-KM3P/"]
["M22S-M2P","Головака переключателя на 2 положения с возвратом стандартная ручка, черный","Без ключа",null,"Без фиксации",null,"Пластик",null,null,null,null,2,"Без ключаБез фиксацииПластик2","M22S-M2P","https://www.dkc.ru/ru/catalog/2028/M22S-M2P/"]
["M22S-L2P","Головака переключателя на 2 положения с фиксацией стандартная ручка, черный","Без ключа",null,"С фиксацией",null,"Пластик",null,null,null,null,2,"Без ключаС фиксациейПластик2","M22S-L2P","https://www.dkc.ru/ru/catalog/2028/M22S-L2P/"]
["M22S-L3P","Головака переключателя на 3 положения с фиксацией стандартная ручка, черный","Без ключа",null,"С фиксацией",null,"Пластик",null,null,null,null,3,"Без ключаС фиксациейПластик3","M22S-L3P","https://www.dkc.ru/ru/catalog/2028/M22S-L3P/"]
["M22S-M3P","Головака переключателя на 3 положения с возвратом стандартная ручка, черный","Без ключа",null,"Без фиксации",null,"Пластик",null,null,null,null,3,"Без ключаБез фиксацииПластик3","M22S-M3P","https://www.dkc.ru/ru/catalog/2028/M22S-M3P/"]

{"sheet":"Списки","index":3,"n_rows":28,"n_cols":10,"rows_kept":28,"cut":false,"hidden":true,"merged":[]}
["Кнопка"]
["1.Вид кнопки","2.Механизм","3.Цвет","4.Материал кольца","5. Тип зажима контактного блока","6.Наличие NO контактов","7.Наличие NC контактов","8.С возможностью подсветки","9.Напряжение сети","8. Количество NO контактов"]
["Плоская","С фиксацией","Красный","Пластик","Винтовой","Да","Да","Да","9-24 В",0]
["Грибовидная","Без фиксации","Зелёный","Алюминий","Безвинтовой Plug-In","Нет","Нет","Нет","220 В",1]
[null,null,"Синий",null,null,null,null,null,"Нет",2]
[null,null,"Белый",null,null,null,null,null,null,3]
[null,null,"Жёлтый",null,null,null,null,null,null,4]
[null,null,"Чёрный",null,null,null,null,null,null,5]
[null,null,null,null,null,null,null,null,null,6]
[]
[]
[]
["Переклчатель"]
["1. Тип переключателя","2. Количество положений","3. Механизм","4.Материал","5.С возможностью подсветки","6.Напряжение сети","7.Цвет подсветки","8.Наличие NO контактов","9.Наличие NC контактов","8. Количество NO контактов"]
["С ключом",2,"С фиксацией","Пластик","Да","9-24 В","Красный","Да","Да",0]
["Без ключа",3,"Без фиксации","Алюминий",null,"220 В","Зелёный","Нет","Нет",1]
[null,null,null,null,null,null,"Синий",null,null,2]
[null,null,null,null,null,null,"Белый",null,null,3]
[null,null,null,null,null,null,"Жёлтый",null,null,4]
[null,null,null,null,null,null,null,null,null,5]
[null,null,null,null,null,null,null,null,null,6]
["Сигнальный инидкатор"]
["1.Цвет лампы","2.Напряжение сети","3.Тип зажима","4.Материал"]
["Красный","9-24 В","Безвинтовой Plug-In","Пластик"]
["Зелёный","220 В",null,"Алюминий"]
["Синий"]
["Белый"]
["Жёлтый"]